Workbook

Sheet Índice
B9: Banco Mercantil do Brasil S.A.
B11: Planilha de Séries Históricas
B13: Clique no título para acessar a respectiva planilha:
B15: 1. | C15: Balanço Patrimonial
B17: 2. | C17: DRE Contábil (Trimestral)
B19: 3. | C19: DRE Contábil (Anual)
B21: 4. | C21: Captação
B23: 5. | C23: Gerenciamento de Capital
B25: 6. | C25: Dividendos e JCP
B27: 7. | C27: Notas Explicativas
B33: Data da última atualização: 08/03/2023
B35: Em caso de dúvidas, contate: relacoescominvestidores@mercantil.com.br

Sheet Balanço Patrimonial
A2: Banco Mercantil do Brasil SA
A4: Planilha de Séries Históricas
C6: Índice | R6: Índice
A7: Balanço Patrimonial Consolidado
A8: (R$ Mil)
B9: 2020-03-01 | C9: =EDATE(B9,3) -> 2020-06-01 | D9: =EDATE(C9,3) -> 2020-09-01 | E9: =EDATE(D9,3) -> 2020-12-01 | F9: 2021-03-01 | G9: 2021-06-01 | H9: 2021-09-01 | I9: 2021-12-01 | J9: 2022-03-01 | K9: 2022-06-01 | L9: 2022-09-01 | M9: 2022-12-01 | N9: 2023-03-01 | O9: 2023-06-01 | P9: 2023-09-01 | Q9: 2023-12-01 | R9: 2024-03-01 | S9: 2024-06-01 | T9: 2024-09-01 | U9: 2024-12-01 | V9: 2025-03-01 | W9: 2025-06-01 | X9: 2025-09-01 | Y9: 2025-12-01
A10: ATIVO
A12: DISPONIBILIDADES | B12: 792464 | C12: 1282130 | D12: 1361815 | E12: 1426303 | F12: 987478 | G12: 1248637 | H12: 1252750 | I12: 984733 | J12: 721294 | K12: 1155540 | L12: 1035929 | M12: 1226395 | N12: 0 | O12: 0 | P12: 0 | Q12: 0 | R12: 0 | S12: 0 | T12: 0 | U12: 0 | V12: 0 | W12: 0 | X12: 0 | Y12: 0
A14: INSTRUMENTOS FINANCEIROS | B14: =SUM(B15:B16)+B20+B21+B25+B27+B31 -> 7801274 | C14: =SUM(C15:C16)+C20+C21+C25+C27+C31 -> 7865738 | D14: 7217537 | E14: 7825137 | F14: 8217311 | G14: =SUM(G15:G16)+G20+G21+G25+G27+G31 -> 8713462 | H14: 9362915 | I14: 10042686 | J14: 10958952 | K14: 11832427 | L14: 11951103 | M14: 12253470 | N14: 0 | O14: 0 | P14: 0 | Q14: 0 | R14: 0 | S14: 0 | T14: 0 | U14: 0 | V14: 0 | W14: 0 | X14: 0 | Y14: 0
A15: Aplicações Interfinanceiras de Liquidez | B15: 1908301 | C15: 1786218 | D15: 948528 | E15: 651024 | F15: 639605 | G15: 421407 | H15: 556387 | I15: 409878 | J15: 768548 | K15: 1319492 | L15: 1052573 | M15: 685224 | N15: 0 | O15: 0 | P15: 0 | Q15: 0 | R15: 0 | S15: 0 | T15: 0 | U15: 0 | V15: 0 | W15: 0 | X15: 0 | Y15: 0
A16: Títulos e Valores Mobiliários | B16: =SUM(B17:B19) -> 1185567 | C16: =SUM(C17:C19) -> 1221951 | D16: 1173344 | E16: 1163120 | F16: 1119130 | G16: 1156747 | H16: 1106262 | I16: 1167381 | J16: 919727 | K16: 935617 | L16: 903055 | M16: 939833 | N16: 0 | O16: 0 | P16: 0 | Q16: 0 | R16: 0 | S16: 0 | T16: 0 | U16: 0 | V16: 0 | W16: 0 | X16: 0 | Y16: 0
A17: Carteira Própria | B17: 735380 | C17: 999542 | D17: 1022679 | E17: 997039 | F17: 960383 | G17: 939189 | H17: 930965 | I17: 936340 | J17: 801739 | K17: 769707 | L17: 702387 | M17: 637317
A18: Vinculados ao Banco Central | B18: 0 | C18: 0 | D18: 0 | E18: 4014 | F18: 2149 | G18: 0 | H18: 0 | I18: 30242 | J18: 0 | K18: 0 | L18: 28333 | M18: 26581
A19: Vinculados à Prestação de Garantias | B19: 450187 | C19: 222409 | D19: 150665 | E19: 162067 | F19: 156598 | G19: 217558 | H19: 175297 | I19: 200799 | J19: 117988 | K19: 165910 | L19: 172335 | M19: 275935
A20: Instrumentos Financeiros Derivativos | B20: 135370 | C20: 159498 | D20: 0 | E20: 0 | F20: 0 | G20: 0 | H20: 0 | I20: 0 | J20: 0 | K20: 0 | L20: 0 | M20: 0
A21: Relações Interfinanceiras | B21: =SUM(B22:B24) -> 52901 | C21: =SUM(C22:C24) -> 69614 | D21: 75395 | E21: 82531 | F21: 101269 | G21: 127127 | H21: 91085 | I21: 109429 | J21: 82795 | K21: 102496 | L21: 111890 | M21: 116144 | N21: 0 | O21: 0 | P21: 0 | Q21: 0 | R21: 0 | S21: 0 | T21: 0 | U21: 0 | V21: 0 | W21: 0 | X21: 0 | Y21: 0
A22: Pagamentos e Recebimentos a Liquidar | B22: 6876 | C22: 9950 | D22: 13119 | E22: 1 | F22: 15588 | G22: 15033 | H22: 14898 | I22: 19 | J22: 13864 | K22: 17549 | L22: 15056 | M22: 48
A23: Créditos Vinculados - Depósitos no Banco Central | B23: 46025 | C23: 59664 | D23: 62276 | E23: 82470 | F23: 85645 | G23: 112094 | H23: 76187 | I23: 109410 | J23: 68931 | K23: 84947 | L23: 96834 | M23: 116096
A24: Créditos Vinculados - SFH - Sistema Financeiro da Habitação | B24: 0 | C24: 0 | D24: 0 | E24: 60 | F24: 36 | G24: 0 | H24: 0 | I24: 0 | J24: 0 | K24: 0 | L24: 0 | M24: 0
A25: Relações Interdependências | B25: =B26 -> 1331 | C25: =C26 -> 1865 | D25: 1186 | E25: 1984 | F25: 1174 | G25: 2736 | H25: 1267 | I25: 894 | J25: 516 | K25: 87 | L25: 29 | M25: 0 | N25: 0 | O25: 0 | P25: 0 | Q25: 0 | R25: 0 | S25: 0 | T25: 0 | U25: 0 | V25: 0 | W25: 0 | X25: 0 | Y25: 0
A26: Transferências Internas de Recursos | B26: 1331 | C26: 1865 | D26: 1186 | E26: 1984 | F26: 1174 | G26: 2736 | H26: 1267 | I26: 894 | J26: 516 | K26: 87 | L26: 29 | M26: 0
A27: Operações de Crédito | B27: =SUM(B28:B30) -> 4460247 | C27: =SUM(C28:C30) -> 4580978 | D27: 4965121 | E27: 5853090 | F27: 6287784 | G27: 6923621 | H27: 7520009 | I27: 8239560 | J27: 9024824 | K27: 9298585 | L27: 9709168 | M27: 10324384 | N27: 0 | O27: 0 | P27: 0 | Q27: 0 | R27: 0 | S27: 0 | T27: 0 | U27: 0 | V27: 0 | W27: 0 | X27: 0 | Y27: 0
A28: Setor Privado | B28: 4932152 | C28: 5023320 | D28: 5369249 | E28: 6264458 | F28: 6678500 | G28: 7302047 | H28: 7892202 | I28: 8415853 | J28: 8972264 | K28: 8943415 | L28: 9419165 | M28: 10091206
A29: Operações de Crédito Vinculadas a Cessão | B29: 18537 | C29: 13535 | D29: 8814 | E29: 0 | F29: 0 | G29: 0 | H29: 0 | I29: 216211 | J29: 459672 | K29: 824354 | L29: 757940 | M29: 696535
A30: (Provisão para Perdas Esperadas Associadas ao Risco de Crédito) | B30: -490442 | C30: -455877 | D30: -412942 | E30: -411368 | F30: -390716 | G30: -378426 | H30: -372193 | I30: -392504 | J30: -407112 | K30: -469184 | L30: -467937 | M30: -463357
A31: Outros Créditos | B31: =SUM(B32:B36) -> 57557 | C31: =SUM(C32:C36) -> 45614 | D31: 53963 | E31: 73388 | F31: 68349 | G31: 81824 | H31: 87905 | I31: 115544 | J31: 162542 | K31: 176150 | L31: 174388 | M31: 187885 | N31: 0 | O31: 0 | P31: 0 | Q31: 0 | R31: 0 | S31: 0 | T31: 0 | U31: 0 | V31: 0 | W31: 0 | X31: 0 | Y31: 0
A32: Rendas a Receber de Adiantamentos Concedidos | B32: 12926 | C32: 15049 | D32: 16994 | E32: 17032 | F32: 20148 | G32: 19000 | H32: 22100 | I32: 24151 | J32: 0 | K32: 0 | L32: 0 | M32: 0
A33: Devedores por Compras de Valores e Bens | B33: 28117 | C33: 18716 | D33: 17486 | E33: 15851 | F33: 13593 | G33: 13337 | H33: 13969 | I33: 49632 | J33: 48550 | K33: 55160 | L33: 56965 | M33: 55364
A34: Valores a Receber Relativos a Transações de Pagamentos | B34: 67533 | C34: 64289 | D34: 71831 | E34: 92990 | F34: 89228 | G34: 103315 | H34: 107911 | I34: 123489 | J34: 115861 | K34: 123337 | L34: 119936 | M34: 135021
A35: Títulos e Créditos a Receber - Com Característica de Crédito | B35: 0 | C35: 0 | D35: 0 | E35: 0 | F35: 0 | G35: 0 | H35: 0 | I35: 0 | J35: 118370 | K35: 0 | L35: 0 | M35: 0
A36: (Provisão para Perdas Esperadas Associadas ao Risco de Crédito) | B36: -51019 | C36: -52440 | D36: -52348 | E36: -52485 | F36: -54620 | G36: -53828 | H36: -56075 | I36: -81728 | J36: -120239 | K36: -2347 | L36: -2513 | M36: -2500
A38: ATIVOS FISCAIS | B38: =B39+B40 -> 608158 | C38: =C39+C40 -> 604021 | D38: 588541 | E38: 570043 | F38: 563700 | G38: 555390 | H38: 543466 | I38: 697507 | J38: 718621 | K38: 695033 | L38: 712289 | M38: 685490 | N38: 0 | O38: 0 | P38: 0 | Q38: 0 | R38: 0 | S38: 0 | T38: 0 | U38: 0 | V38: 0 | W38: 0 | X38: 0 | Y38: 0
A39: Correntes | B39: 35577 | C39: 34367 | D39: 35720 | E39: 14666 | F39: 14896 | G39: 15850 | H39: 16027 | I39: 84742 | J39: 147972 | K39: 146302 | L39: 144316 | M39: 130119
A40: Diferidos | B40: 572581 | C40: 569654 | D40: 552821 | E40: 555377 | F40: 548804 | G40: 539540 | H40: 527439 | I40: 612765 | J40: 570649 | K40: 548731 | L40: 567973 | M40: 555371
A42: OUTROS ATIVOS | B42: =B43+B48 -> 676933 | C42: =C43+C48 -> 758373 | D42: 748258 | E42: 649353 | F42: 710167 | G42: 758403 | H42: 528289 | I42: 442258 | J42: 395285 | K42: 413313 | L42: 378809 | M42: 407486 | N42: 0 | O42: 0 | P42: 0 | Q42: 0 | R42: 0 | S42: 0 | T42: 0 | U42: 0 | V42: 0 | W42: 0 | X42: 0 | Y42: 0
A43: Outros Valores e Bens | B43: =SUM(B44:B47) -> 234630 | C43: =SUM(C44:C47) -> 208970 | D43: 181723 | E43: 176362 | F43: 163062 | G43: 146909 | H43: 142628 | I43: 85623 | J43: 89446 | K43: 113613 | L43: =SUM(L44:L47) -> 103383 | M43: 122847 | N43: 0 | O43: 0 | P43: 0 | Q43: 0 | R43: 0 | S43: 0 | T43: 0 | U43: 0 | V43: 0 | W43: 0 | X43: 0 | Y43: 0
A44: Material em Estoque | B44: 0 | C44: 0 | D44: 0 | E44: 0 | F44: 0 | G44: 0 | H44: 0 | I44: 0 | J44: 0 | K44: 3722 | L44: 3824 | M44: 4863
A45: Ativos Não Financeiros Mantidos para Venda | B45: 228162 | C45: 223023 | D45: 188205 | E45: 181647 | F45: 162695 | G45: 131002 | H45: 125787 | I45: 65651 | J45: 61079 | K45: 76320 | L45: 68817 | M45: 73857
A46: (Provisão para Desvalorizações) | B46: -94542 | C46: -94488 | D46: -79301 | E46: -76204 | F46: -67450 | G46: -49420 | H46: -43510 | I46: -28145 | J46: -25091 | K46: -18943 | L46: -15753 | M46: -18542
A47: Despesas Antecipadas | B47: 101010 | C47: 80435 | D47: 72819 | E47: 70919 | F47: 67817 | G47: 65327 | H47: 60351 | I47: 48117 | J47: 53458 | K47: 52514 | L47: 46495 | M47: 62669
A48: Outros Créditos | B48: =SUM(B49:B60) -> 442303 | C48: =SUM(C49:C60) -> 549403 | D48: 566535 | E48: 472991 | F48: 547105 | G48: 611494 | H48: 385661 | I48: 356635 | J48: 305839 | K48: 299700 | L48: 275426 | M48: 284639 | N48: 0 | O48: 0 | P48: 0 | Q48: 0 | R48: 0 | S48: 0 | T48: 0 | U48: 0 | V48: 0 | W48: 0 | X48: 0 | Y48: 0
A49: Câmbio Comprado a Liquidar | B49: 89745 | C49: 94807 | D49: 97377 | E49: 90075 | F49: 98354 | G49: 87853 | H49: 94173 | I49: 96505 | J49: 0 | K49: 0 | L49: 1300 | M49: 0 | N49: 0 | O49: 0 | P49: 0 | Q49: 0 | R49: 0 | S49: 0 | T49: 0 | U49: 0 | V49: 0 | W49: 0 | X49: 0 | Y49: 0
A50: Direitos sobre Venda de Câmbio | B50: 0 | C50: 543 | D50: 0 | E50: 414 | F50: 0 | G50: 1917 | H50: 271 | I50: 0 | J50: 0 | K50: 0 | L50: 1077 | M50: 0
A51: (Adiantamentos em Moeda Nacional Recebidos) | B51: 0 | C51: 0 | D51: 0 | E51: -52 | F51: 0 | G51: -221 | H51: 0 | I51: 0 | J51: 0 | K51: 0 | L51: 0 | M51: 0
A52: Rendas a Receber | B52: 8151 | C52: 8105 | D52: 8109 | E52: 7736 | F52: 8122 | G52: 1530 | H52: 2251 | I52: 3064 | J52: 1346 | K52: 2045 | L52: 1997 | M52: 1432 | N52: 0 | O52: 0 | P52: 0 | Q52: 0 | R52: 0 | S52: 0 | T52: 0 | U52: 0 | V52: 0 | W52: 0 | X52: 0 | Y52: 0
A53: Negociação e Intermediação de Valores | B53: 995 | C53: 5233 | D53: 3270 | E53: 2289 | F53: 4480 | G53: 3178 | H53: 2991 | I53: 3391 | J53: 717 | K53: 560 | L53: 882 | M53: 6582 | N53: 0 | O53: 0 | P53: 0 | Q53: 0 | R53: 0 | S53: 0 | T53: 0 | U53: 0 | V53: 0 | W53: 0 | X53: 0 | Y53: 0
A54: Devedores por Depósitos em Garantia | B54: 225351 | C54: 220631 | D54: 217805 | E54: 175198 | F54: 179136 | G54: 174121 | H54: 170763 | I54: 172900 | J54: 174939 | K54: 172040 | L54: 166106 | M54: 169877
A55: Pagamentos a Ressarcir | B55: 1808 | C55: 1551 | D55: 1760 | E55: 1560 | F55: 1585 | G55: 1579 | H55: 1623 | I55: 1597 | J55: 1608 | K55: 1623 | L55: 1683 | M55: 1673 | N55: 0 | O55: 0 | P55: 0 | Q55: 0 | R55: 0 | S55: 0 | T55: 0 | U55: 0 | V55: 0 | W55: 0 | X55: 0 | Y55: 0
A56: Títulos e Créditos a Receber - Sem Característica de Crédito | B56: 75035 | C56: 193652 | D56: 214210 | E56: 153687 | F56: 214564 | G56: 311922 | H56: 63329 | I56: 64600 | J56: 63995 | K56: 56684 | L56: 60680 | M56: 62308 | N56: 0 | O56: 0 | P56: 0 | Q56: 0 | R56: 0 | S56: 0 | T56: 0 | U56: 0 | V56: 0 | W56: 0 | X56: 0 | Y56: 0
A57: Adiantamentos e Antecipações Salariais | B57: 1091 | C57: 6133 | D57: 5964 | E57: 785 | F57: 1209 | G57: 6213 | H57: 5789 | I57: 1123 | J57: 1195 | K57: 6545 | L57: 6311 | M57: 1097 | N57: 0 | O57: 0 | P57: 0 | Q57: 0 | R57: 0 | S57: 0 | T57: 0 | U57: 0 | V57: 0 | W57: 0 | X57: 0 | Y57: 0
A58: Devedores Diversos | B58: 47485 | C58: 23500 | D58: 22671 | E58: 43233 | F58: 42566 | G58: 25307 | H58: 41024 | I58: 45234 | J58: 46074 | K58: 49911 | L58: 31293 | M58: 32515 | N58: 0 | O58: 0 | P58: 0 | Q58: 0 | R58: 0 | S58: 0 | T58: 0 | U58: 0 | V58: 0 | W58: 0 | X58: 0 | Y58: 0
A59: Outros | B59: 2342 | C59: 4948 | D59: 5069 | E59: 8460 | F59: 7789 | G59: 8795 | H59: 14147 | I59: 19692 | J59: 26665 | K59: 21892 | L59: 15659 | M59: 20417 | N59: 0 | O59: 0 | P59: 0 | Q59: 0 | R59: 0 | S59: 0 | T59: 0 | U59: 0 | V59: 0 | W59: 0 | X59: 0 | Y59: 0
A60: (Provisão para Perdas Esperadas Associadas ao Risco de Crédito) | B60: -9700 | C60: -9700 | D60: -9700 | E60: -10394 | F60: -10700 | G60: -10700 | H60: -10700 | I60: -51471 | J60: -10700 | K60: -11600 | L60: -11562 | M60: -11262
A62: INVESTIMENTOS | B62: =SUM(B63:B64) -> 1524 | C62: 1681 | D62: 1906 | E62: 2112 | F62: 2263 | G62: 2488 | H62: 2464 | I62: 2689 | J62: 3372 | K62: 3833 | L62: 4132 | M62: 22331 | N62: 0 | O62: 0 | P62: 0 | Q62: 0 | R62: 0 | S62: 0 | T62: 0 | U62: 0 | V62: 0 | W62: 0 | X62: 0 | Y62: 0
A63: Outros Investimentos | B63: ='[1]BP-BACEN-2020'!$H$99 -> 2917 | C63: ='[2]BP-BACEN-2020'!$H$99 -> 3041 | D63: ='[3]BP-BACEN-2020'!$G$99 -> 3276 | E63: ='[4]BP-BACEN-2020'!$H$101 -> 3496 | F63: ='[5]BP-BACEN-2021'!$H$95 -> 3629 | G63: ='[6]BP-BACEN-2021'!$G$95 -> 3881 | H63: ='[7]BP-BACEN-2021'!$H$95 -> 3864 | I63: ='[8]BP-BACEN-2021'!$H$98 -> 4094 | J63: ='[9]BP-BACEN-2022'!$H$94 -> 4821 | K63: 5291 | L63: 5653 | M63: 23981 | N63: 0 | O63: 0 | P63: 0 | Q63: 0 | R63: 0 | S63: 0 | T63: 0 | U63: 0 | V63: 0 | W63: 0 | X63: 0 | Y63: 0
A64: (Provisões para Perdas) | B64: ='[1]BP-BACEN-2020'!$H$100 -> -1393 | C64: ='[2]BP-BACEN-2020'!$H$100 -> -1360 | D64: ='[3]BP-BACEN-2020'!$G$100 -> -1370 | E64: ='[4]BP-BACEN-2020'!$H$102 -> -1384 | F64: ='[5]BP-BACEN-2021'!$H$96 -> -1366 | G64: ='[6]BP-BACEN-2021'!$G$96 -> -1393 | H64: ='[7]BP-BACEN-2021'!$H$96 -> -1400 | I64: ='[8]BP-BACEN-2021'!$H$99 -> -1405 | J64: ='[9]BP-BACEN-2022'!$H$95 -> -1449 | K64: -1458 | L64: -1521 | M64: -1650 | N64: 0 | O64: 0 | P64: 0 | Q64: 0 | R64: 0 | S64: 0 | T64: 0 | U64: 0 | V64: 0 | W64: 0 | X64: 0 | Y64: 0
A66: PROPRIEDADES PARA INVESTIMENTO | B66: =SUM(B67:B68) -> 0 | C66: 0 | D66: 0 | E66: 0 | F66: 0 | G66: 0 | H66: 0 | I66: 8881 | J66: 8816 | K66: 8732 | L66: 8667 | M66: 3097 | N66: 0 | O66: 0 | P66: 0 | Q66: 0 | R66: 0 | S66: 0 | T66: 0 | U66: 0 | V66: 0 | W66: 0 | X66: 0 | Y66: 0
A67: Imóveis para Renda | B67: 0 | C67: 0 | D67: 0 | E67: 0 | F67: 0 | G67: 0 | H67: 0 | I67: ='[9]BP-BACEN-2022'!$I$98 -> 9547 | J67: ='[9]BP-BACEN-2022'!$H$98 -> 9547 | K67: 9520 | L67: 9520 | M67: 3315 | N67: 0 | O67: 0 | P67: 0 | Q67: 0 | R67: 0 | S67: 0 | T67: 0 | U67: 0 | V67: 0 | W67: 0 | X67: 0 | Y67: 0
A68: (Depreciação Acumulada) | B68: 0 | C68: 0 | D68: 0 | E68: 0 | F68: 0 | G68: 0 | H68: 0 | I68: ='[9]BP-BACEN-2022'!$I$99 -> -666 | J68: ='[9]BP-BACEN-2022'!$H$99 -> -731 | K68: -788 | L68: -853 | M68: -218 | N68: 0 | O68: 0 | P68: 0 | Q68: 0 | R68: 0 | S68: 0 | T68: 0 | U68: 0 | V68: 0 | W68: 0 | X68: 0 | Y68: 0
A70: IMOBILIZADO | B70: =SUM(B71:B73) -> 150489 | C70: =SUM(C71:C73) -> 176318 | D70: 173063 | E70: 176153 | F70: 180076 | G70: 182778 | H70: 178895 | I70: 162891 | J70: 153444 | K70: 149993 | L70: 146159 | M70: 149422 | N70: 0 | O70: 0 | P70: 0 | Q70: 0 | R70: 0 | S70: 0 | T70: 0 | U70: 0 | V70: 0 | W70: 0 | X70: 0 | Y70: 0
A71: Imóveis de Uso | B71: ='[1]BP-BACEN-2020'!$H$103 -> 25598 | C71: ='[2]BP-BACEN-2020'!$H$103 -> 29662 | D71: ='[3]BP-BACEN-2020'!$G$103 -> 25672 | E71: ='[4]BP-BACEN-2020'!$H$105 -> 23922 | F71: ='[5]BP-BACEN-2021'!$H$99 -> 27857 | G71: ='[6]BP-BACEN-2021'!$G$99 -> 27857 | H71: ='[7]BP-BACEN-2021'!$H$99 -> 27823 | I71: ='[9]BP-BACEN-2022'!$I$102 -> 18309 | J71: ='[9]BP-BACEN-2022'!$H$102 -> 18309 | K71: 18310 | L71: 18261 | M71: 18261 | N71: 0 | O71: 0 | P71: 0 | Q71: 0 | R71: 0 | S71: 0 | T71: 0 | U71: 0 | V71: 0 | W71: 0 | X71: 0 | Y71: 0
A72: Outras Imobilizações de Uso | B72: ='[1]BP-BACEN-2020'!$H$104 -> 267861 | C72: ='[2]BP-BACEN-2020'!$H$104 -> 296556 | D72: ='[3]BP-BACEN-2020'!$G$104 -> 304258 | E72: ='[4]BP-BACEN-2020'!$H$106 -> 316807 | F72: ='[5]BP-BACEN-2021'!$H$100 -> 325295 | G72: ='[6]BP-BACEN-2021'!$G$100 -> 336850 | H72: ='[7]BP-BACEN-2021'!$H$100 -> 342553 | I72: ='[9]BP-BACEN-2022'!$I$103 -> 342772 | J72: ='[9]BP-BACEN-2022'!$H$103 -> 341987 | K72: 341914 | L72: 339791 | M72: 337991 | N72: 0 | O72: 0 | P72: 0 | Q72: 0 | R72: 0 | S72: 0 | T72: 0 | U72: 0 | V72: 0 | W72: 0 | X72: 0 | Y72: 0
A73: (Depreciação Acumulada) | B73: ='[1]BP-BACEN-2020'!$H$105 -> -142970 | C73: ='[2]BP-BACEN-2020'!$H$105 -> -149900 | D73: ='[3]BP-BACEN-2020'!$G$105 -> -156867 | E73: ='[4]BP-BACEN-2020'!$H$107 -> -164576 | F73: ='[5]BP-BACEN-2021'!$H$101 -> -173076 | G73: ='[6]BP-BACEN-2021'!$G$101 -> -181929 | H73: ='[7]BP-BACEN-2021'!$H$101 -> -191481 | I73: ='[9]BP-BACEN-2022'!$I$104 -> -198190 | J73: ='[9]BP-BACEN-2022'!$H$104 -> -206852 | K73: -210231 | L73: -211893 | M73: -206830 | N73: 0 | O73: 0 | P73: 0 | Q73: 0 | R73: 0 | S73: 0 | T73: 0 | U73: 0 | V73: 0 | W73: 0 | X73: 0 | Y73: 0
A75: INTANGÍVEL | B75: =SUM(B76:B77) -> 56685 | C75: =SUM(C76:C77) -> 58905 | D75: 66895 | E75: 69262 | F75: 69791 | G75: 69666 | H75: 82185 | I75: 81720 | J75: 81258 | K75: 89893 | L75: 92643 | M75: 100737 | N75: 0 | O75: 0 | P75: 0 | Q75: 0 | R75: 0 | S75: 0 | T75: 0 | U75: 0 | V75: 0 | W75: 0 | X75: 0 | Y75: 0
A76: Ativos Intangíveis | B76: ='[1]BP-BACEN-2020'!$H$108 -> 145002 | C76: ='[2]BP-BACEN-2020'!$H$108 -> 151732 | D76: ='[3]BP-BACEN-2020'!$G$108 -> 164333 | E76: ='[4]BP-BACEN-2020'!$H$110 -> 171408 | F76: ='[5]BP-BACEN-2021'!$H$104 -> 176916 | G76: ='[6]BP-BACEN-2021'!$G$104 -> 179319 | H76: ='[7]BP-BACEN-2021'!$H$104 -> 197280 | I76: ='[8]BP-BACEN-2021'!$H$107 -> 196129 | J76: ='[9]BP-BACEN-2022'!$H$107 -> 202392 | K76: 209492 | L76: 218743 | M76: 234555 | N76: 0 | O76: 0 | P76: 0 | Q76: 0 | R76: 0 | S76: 0 | T76: 0 | U76: 0 | V76: 0 | W76: 0 | X76: 0 | Y76: 0
A77: (Amortização Acumulada) | B77: ='[1]BP-BACEN-2020'!$H$109 -> -88317 | C77: ='[2]BP-BACEN-2020'!$H$109 -> -92827 | D77: ='[3]BP-BACEN-2020'!$G$109 -> -97438 | E77: ='[4]BP-BACEN-2020'!$H$111 -> -102146 | F77: ='[5]BP-BACEN-2021'!$H$105 -> -107125 | G77: ='[6]BP-BACEN-2021'!$G$105 -> -109653 | H77: ='[7]BP-BACEN-2021'!$H$105 -> -115095 | I77: ='[8]BP-BACEN-2021'!$H$108 -> -114409 | J77: ='[9]BP-BACEN-2022'!$H$108 -> -121134 | K77: -119599 | L77: -126100 | M77: -133818 | N77: 0 | O77: 0 | P77: 0 | Q77: 0 | R77: 0 | S77: 0 | T77: 0 | U77: 0 | V77: 0 | W77: 0 | X77: 0 | Y77: 0
A79: TOTAL DO ATIVO | B79: =B12+B14+B38+B42+B62+B66+B70+B75 -> 10087527 | C79: 10747166 | D79: 10158015 | E79: 10718363 | F79: 10730786 | G79: 11530824 | H79: 11950964 | I79: 12423365 | J79: 13041042 | K79: 14348764 | L79: 14329731 | M79: 14848428 | N79: 0 | O79: 0 | P79: 0 | Q79: 0 | R79: 0 | S79: 0 | T79: 0 | U79: 0 | V79: 0 | W79: 0 | X79: 0 | Y79: 0
A81: PASSIVO E PATRIMÔNIO LÍQUIDO
A83: DEPÓSITOS E DEMAIS INSTRUMENTOS FINANCEIROS | B83: =B84+B90+B92+B94+B98+B101+B102+B103+B104 -> 8285060 | C83: 8806253 | D83: 8265753 | E83: 8763600 | F83: 8686310 | G83: 9359601 | H83: 9740142 | I83: 10233617 | J83: 10772695 | K83: 11964533 | L83: 12033542 | M83: 12509873 | N83: 0 | O83: 0 | P83: 0 | Q83: 0 | R83: 0 | S83: 0 | T83: 0 | U83: 0 | V83: 0 | W83: 0 | X83: 0 | Y83: 0
A84: Depósitos | B84: =SUM(B85:B89) -> 6674461 | C84: =SUM(C85:C89) -> 7409235 | D84: 7611601 | E84: 8035003 | F84: 7933861 | G84: 8688226 | H84: 9069616 | I84: 9231014 | J84: 9527591 | K84: 10274519 | L84: 10332640 | M84: 10841812 | N84: 0 | O84: 0 | P84: 0 | Q84: 0 | R84: 0 | S84: 0 | T84: 0 | U84: 0 | V84: 0 | W84: 0 | X84: 0 | Y84: 0
A85: Depósitos à Vista | B85: 322715 | C85: 399125 | D85: 389805 | E85: 443055 | F85: 456121 | G85: 494062 | H85: 444334 | I85: 480750 | J85: 497008 | K85: 513369 | L85: 541721 | M85: 542847 | N85: 0 | O85: 0 | P85: 0 | Q85: 0 | R85: 0 | S85: 0 | T85: 0 | U85: 0 | V85: 0 | W85: 0 | X85: 0 | Y85: 0
A86: Depósitos de Poupança | B86: 201079 | C86: 222429 | D86: 233045 | E86: 232987 | F86: 231896 | G86: 238444 | H86: 226583 | I86: 226084 | J86: 218273 | K86: 220749 | L86: 202442 | M86: 196467 | N86: 0 | O86: 0 | P86: 0 | Q86: 0 | R86: 0 | S86: 0 | T86: 0 | U86: 0 | V86: 0 | W86: 0 | X86: 0 | Y86: 0
A87: Depósitos Interfinanceiros | B87: 96853 | C87: 116902 | D87: 26474 | E87: 26753 | F87: 67840 | G87: 198628 | H87: 229842 | I87: 235048 | J87: 188481 | K87: 195074 | L87: 139047 | M87: 148436 | N87: 0 | O87: 0 | P87: 0 | Q87: 0 | R87: 0 | S87: 0 | T87: 0 | U87: 0 | V87: 0 | W87: 0 | X87: 0 | Y87: 0
A88: Depósitos a Prazo | B88: 6053814 | C88: 6670779 | D88: 6962277 | E88: 7332208 | F88: 7172921 | G88: 7751725 | H88: 8165726 | I88: 8285956 | J88: 8620937 | K88: 9344320 | L88: 9447053 | M88: 9946592 | N88: 0 | O88: 0 | P88: 0 | Q88: 0 | R88: 0 | S88: 0 | T88: 0 | U88: 0 | V88: 0 | W88: 0 | X88: 0 | Y88: 0
A89: Outros Depósitos | B89: 0 | C89: 0 | D89: 0 | E89: 0 | F89: 5083 | G89: 5367 | H89: 3131 | I89: 3176 | J89: 2892 | K89: 1007 | L89: 2377 | M89: 7470
A90: Captações no Mercado Aberto | B90: =B91 -> 297751 | C90: 100903 | D90: 65902 | E90: 146853 | F90: 169896 | G90: 74108 | H90: 71416 | I90: 106216 | J90: 70020 | K90: 51357 | L90: 59371 | M90: 30762 | N90: 0 | O90: 0 | P90: 0 | Q90: 0 | R90: 0 | S90: 0 | T90: 0 | U90: 0 | V90: 0 | W90: 0 | X90: 0 | Y90: 0
A91: Carteira de Terceiros | B91: 297751 | C91: 100903 | D91: 65902 | E91: 146853 | F91: 169896 | G91: 74108 | H91: 71416 | I91: 106216 | J91: 70020 | K91: 51357 | L91: 59371 | M91: 30762
A92: Recursos de Aceites e Emissão de Títulos | B92: =B93 -> 154510 | C92: 105565 | D92: 86806 | E92: 88495 | F92: 84982 | G92: 77860 | H92: 73727 | I92: 92029 | J92: 116104 | K92: 126394 | L92: 126282 | M92: 120510 | N92: 0 | O92: 0 | P92: 0 | Q92: 0 | R92: 0 | S92: 0 | T92: 0 | U92: 0 | V92: 0 | W92: 0 | X92: 0 | Y92: 0
A93: Recursos de Letras Imobiliárias, Hipotecárias, de Crédito e Similares | B93: 154510 | C93: 105565 | D93: 86806 | E93: 88495 | F93: 84982 | G93: 77860 | H93: 73727 | I93: 92029 | J93: 116104 | K93: 126394 | L93: 126282 | M93: 120510
A94: Relações Interfinanceiras | B94: =B95+B96+B97 -> 11236 | C94: =C95+C96+C97 -> 15367 | D94: 56626 | E94: 56271 | F94: 70543 | G94: 84546 | H94: 87934 | I94: 124225 | J94: 98761 | K94: 109383 | L94: 111938 | M94: 137157 | N94: 0 | O94: 0 | P94: 0 | Q94: 0 | R94: 0 | S94: 0 | T94: 0 | U94: 0 | V94: 0 | W94: 0 | X94: 0 | Y94: 0
A95: Recebimentos e Pagamentos a Liquidar | B95: 9325 | C95: 14200 | D95: 54084 | E95: 49304 | F95: 61587 | G95: 71736 | H95: 76909 | I95: 65027 | J95: 75841 | K95: 85889 | L95: 83167 | M95: 75061
A96: Obrigações Vinculadas | B96: 0 | C96: 0 | D96: 0 | E96: 4003 | F96: 2143 | G96: 0 | H96: 0 | I96: 30180 | J96: 0 | K96: 0 | L96: 13012 | M96: 26512
A97: Correspondentes | B97: 1911 | C97: 1167 | D97: 2542 | E97: 2964 | F97: 6813 | G97: 12810 | H97: 11025 | I97: 29018 | J97: 22920 | K97: 23494 | L97: 15759 | M97: 35584
A98: Relações Interdependências | B98: =B99+B100 -> 4475 | C98: 5487 | D98: 15884 | E98: 16758 | F98: 3605 | G98: 6059 | H98: 3854 | I98: 15670 | J98: 2553 | K98: 2959 | L98: 2861 | M98: 2873 | N98: 0 | O98: 0 | P98: 0 | Q98: 0 | R98: 0 | S98: 0 | T98: 0 | U98: 0 | V98: 0 | W98: 0 | X98: 0 | Y98: 0
A99: Recursos em Trânsito de Terceiros | B99: 4475 | C99: 5487 | D99: 15675 | E99: 16758 | F99: 3605 | G99: 6059 | H99: 3854 | I99: 15670 | J99: 2553 | K99: 2948 | L99: 2861 | M99: 2873
A100: Transferências Internas de Recursos | B100: 0 | C100: 0 | D100: 209 | E100: 0 | F100: 0 | G100: 0 | H100: 0 | I100: 0 | J100: 0 | K100: 11 | L100: 0 | M100: 0
A101: Provisão para Garantias Financeiras Prestadas | B101: 2810 | C101: 2700 | D101: 2962 | E101: 2964 | F101: 3017 | G101: 3042 | H101: 3047 | I101: 2778 | J101: 2247 | K101: 2286 | L101: 2248 | M101: 1871
A102: Obrigações por Operações Vinculadas a Cessão | B102: 19434 | C102: 14128 | D102: 9091 | E102: 0 | F102: 0 | G102: 0 | H102: 0 | I102: 226402 | J102: 494650 | K102: 895902 | L102: 822843 | M102: 752950
A103: Dívidas Subordinadas | B103: 716527 | C103: 741010 | D103: 0 | E103: 0 | F103: 0 | G103: 0 | H103: 0 | I103: 0 | J103: 0 | K103: 0 | L103: 0 | M103: 0
A104: Instrumentos de Dívida Elegíveis a Capital | B104: 403856 | C104: 411858 | D104: 416881 | E104: 417256 | F104: 420406 | G104: 425760 | H104: 430548 | I104: 435283 | J104: 460769 | K104: 501733 | L104: 575359 | M104: 621938
A106: PROVISÕES | B106: =SUM(B107:B108) -> 293697 | C106: 291135 | D106: 295411 | E106: 286050 | F106: 303097 | G106: 287811 | H106: 297135 | I106: 280339 | J106: 289749 | K106: 287429 | L106: 267707 | M106: 270495 | N106: 0 | O106: 0 | P106: 0 | Q106: 0 | R106: 0 | S106: 0 | T106: 0 | U106: 0 | V106: 0 | W106: 0 | X106: 0 | Y106: 0
A107: Provisão para Outros Passivos | B107: 293697 | C107: 291135 | D107: 295411 | E107: 286050 | F107: 303097 | G107: 287811 | H107: 297135 | I107: 280339 | J107: 289749 | K107: 287429 | L107: 267707 | M107: 270495 | N107: 0 | O107: 0 | P107: 0 | Q107: 0 | R107: 0 | S107: 0 | T107: 0 | U107: 0 | V107: 0 | W107: 0 | X107: 0 | Y107: 0
A109: PASSIVOS FISCAIS | B109: =B110+B111 -> 30951 | C109: 39421 | D109: 37583 | E109: 46728 | F109: 40419 | G109: 41027 | H109: =H110+H111 -> 52043 | I109: 49811 | J109: 47857 | K109: 48184 | L109: 62754 | M109: 55339 | N109: 0 | O109: 0 | P109: 0 | Q109: 0 | R109: 0 | S109: 0 | T109: 0 | U109: 0 | V109: 0 | W109: 0 | X109: 0 | Y109: 0
A110: Correntes | B110: 24947 | C110: 27779 | D110: 30874 | E110: 39391 | F110: 37280 | G110: 37837 | H110: 46598 | I110: 42334 | J110: 37184 | K110: 38721 | L110: 50109 | M110: 50467 | N110: 0 | O110: 0 | P110: 0 | Q110: 0 | R110: 0 | S110: 0 | T110: 0 | U110: 0 | V110: 0 | W110: 0 | X110: 0 | Y110: 0
A111: Diferidos | B111: 6004 | C111: 11642 | D111: 6709 | E111: 7337 | F111: 3139 | G111: 3190 | H111: 5445 | I111: 7477 | J111: 10673 | K111: 9463 | L111: 12645 | M111: 4872 | N111: 0 | O111: 0 | P111: 0 | Q111: 0 | R111: 0 | S111: 0 | T111: 0 | U111: 0 | V111: 0 | W111: 0 | X111: 0 | Y111: 0
A113: OUTROS PASSIVOS | B113: =SUM(B114:B124) -> 497926 | C113: 609372 | D113: 532636 | E113: 587766 | F113: 615894 | G113: 729093 | H113: 702977 | I113: 688130 | J113: 707992 | K113: 798728 | L113: 691568 | M113: 693180 | N113: 0 | O113: 0 | P113: 0 | Q113: 0 | R113: 0 | S113: 0 | T113: 0 | U113: 0 | V113: 0 | W113: 0 | X113: 0 | Y113: 0
A114: Cobrança e Arrecadação de Tributos e Assemelhados | B114: 8223 | C114: 35517 | D114: 10651 | E114: 430 | F114: 26071 | G114: 21873 | H114: 34545 | I114: 9091 | J114: 27004 | K114: 32469 | L114: 29683 | M114: 5564 | N114: 0 | O114: 0 | P114: 0 | Q114: 0 | R114: 0 | S114: 0 | T114: 0 | U114: 0 | V114: 0 | W114: 0 | X114: 0 | Y114: 0
A115: Câmbio Vendido a Liquidar | B115: 0 | C115: 548 | D115: 0 | E115: 415 | F115: 0 | G115: 1922 | H115: 272 | I115: 0 | J115: 0 | K115: 0 | L115: 2381 | M115: 0
A116: Obrigações por Compra de Câmbio | B116: 55583 | C116: 55853 | D116: 55583 | E116: 55945 | F116: 55583 | G116: 57076 | H116: 55852 | I116: 55752 | J116: 0 | K116: 0 | L116: 0 | M116: 0 | N116: 0 | O116: 0 | P116: 0 | Q116: 0 | R116: 0 | S116: 0 | T116: 0 | U116: 0 | V116: 0 | W116: 0 | X116: 0 | Y116: 0
A117: (Adiantamentos sobre Contratos de Câmbio) | B117: -55583 | C117: -55583 | D117: -55583 | E117: -55583 | F117: -55583 | G117: -55583 | H117: -55583 | I117: -55583 | J117: 0 | K117: 0 | L117: 0 | M117: 0 | N117: 0 | O117: 0 | P117: 0 | Q117: 0 | R117: 0 | S117: 0 | T117: 0 | U117: 0 | V117: 0 | W117: 0 | X117: 0 | Y117: 0
A118: Sociais e Estatutárias | B118: 3148 | C118: 15507 | D118: 8227 | E118: 56201 | F118: 13365 | G118: 42130 | H118: 14971 | I118: 49438 | J118: 15710 | K118: 47826 | L118: 49496 | M118: 56556 | N118: 0 | O118: 0 | P118: 0 | Q118: 0 | R118: 0 | S118: 0 | T118: 0 | U118: 0 | V118: 0 | W118: 0 | X118: 0 | Y118: 0
A119: Negociação e Intermediação de Valores | B119: 8470 | C119: 17040 | D119: 14138 | E119: 7734 | F119: 1839 | G119: 2654 | H119: 1116 | I119: 1025 | J119: 3358 | K119: 3961 | L119: 3209 | M119: 1754 | N119: 0 | O119: 0 | P119: 0 | Q119: 0 | R119: 0 | S119: 0 | T119: 0 | U119: 0 | V119: 0 | W119: 0 | X119: 0 | Y119: 0
A120: Obrigações por Convênios Oficiais | B120: 157321 | C120: 214936 | D120: 191129 | E120: 186310 | F120: 200549 | G120: 229116 | H120: 184333 | I120: 191242 | J120: 198960 | K120: 251140 | L120: 175925 | M120: 183973 | N120: 0 | O120: 0 | P120: 0 | Q120: 0 | R120: 0 | S120: 0 | T120: 0 | U120: 0 | V120: 0 | W120: 0 | X120: 0 | Y120: 0
A121: Obrigações por Aquisição de Bens e Direitos | B121: 15104 | C121: 9420 | D121: 6742 | E121: 8683 | F121: 4307 | G121: 5012 | H121: 9806 | I121: 9073 | J121: 9050 | K121: 11946 | L121: 4318 | M121: 16872 | N121: 0 | O121: 0 | P121: 0 | Q121: 0 | R121: 0 | S121: 0 | T121: 0 | U121: 0 | V121: 0 | W121: 0 | X121: 0 | Y121: 0
A122: Provisão para Pagamentos a Efetuar | B122: 80847 | C122: 99702 | D122: 109280 | E122: 115903 | F122: 145889 | G122: 186923 | H122: 200828 | I122: 184148 | J122: 178104 | K122: 183004 | L122: 177970 | M122: 162323 | N122: 0 | O122: 0 | P122: 0 | Q122: 0 | R122: 0 | S122: 0 | T122: 0 | U122: 0 | V122: 0 | W122: 0 | X122: 0 | Y122: 0
A123: Credores Diversos - País | B123: 191057 | C123: 174402 | D123: 150982 | E123: 188028 | F123: 200923 | G123: 217390 | H123: 236538 | I123: 242642 | J123: 275044 | K123: 267619 | L123: 247832 | M123: 248920 | N123: 0 | O123: 0 | P123: 0 | Q123: 0 | R123: 0 | S123: 0 | T123: 0 | U123: 0 | V123: 0 | W123: 0 | X123: 0 | Y123: 0
A124: Outros | B124: 33756 | C124: 42030 | D124: 41487 | E124: 23700 | F124: 22951 | G124: 20580 | H124: 20299 | I124: 1302 | J124: 762 | K124: 763 | L124: 754 | M124: 17218 | N124: 0 | O124: 0 | P124: 0 | Q124: 0 | R124: 0 | S124: 0 | T124: 0 | U124: 0 | V124: 0 | W124: 0 | X124: 0 | Y124: 0
A126: RESULTADOS DE EXERCÍCIOS FUTUROS | B126: 318 | C126: 258 | D126: 303 | E126: 312 | F126: 288 | G126: 250 | H126: 273 | I126: 0 | J126: 0 | K126: 0 | L126: 0 | M126: 0 | N126: 0 | O126: 0 | P126: 0 | Q126: 0 | R126: 0 | S126: 0 | T126: 0 | U126: 0 | V126: 0 | W126: 0 | X126: 0 | Y126: 0
A128: PATRIMÔNIO LÍQUIDO | B128: =B129+B131+B132+B133+B138+B140+B130+B141 -> 979575 | C128: 1000727 | D128: 1026329 | E128: 1033907 | F128: 1084778 | G128: 1113042 | H128: 1158394 | I128: 1171468 | J128: 1222749 | K128: 1249890 | L128: 1274160 | M128: 1319541 | N128: 0 | O128: 0 | P128: 0 | Q128: 0 | R128: 0 | S128: 0 | T128: 0 | U128: 0 | V128: 0 | W128: 0 | X128: 0 | Y128: 0
A129: Capital Social | B129: 492708 | C129: 492708 | D129: 492708 | E129: 492708 | F129: 492708 | G129: 492708 | H129: 492708 | I129: 597540 | J129: 597540 | K129: 597540 | L129: 597540 | M129: 597540 | N129: 0 | O129: 0 | P129: 0 | Q129: 0 | R129: 0 | S129: 0 | T129: 0 | U129: 0 | V129: 0 | W129: 0 | X129: 0 | Y129: 0
A130: (Ações em Tesouraria) | B130: 0 | C130: 0 | D130: 0 | E130: 0 | F130: 0 | G130: 0 | H130: 0 | I130: -5614 | J130: -3974 | K130: -3830 | L130: -3830 | M130: -3830
A131: Reservas de Capital | B131: 43375 | C131: 43375 | D131: 43375 | E131: 43375 | F131: 43375 | G131: 43375 | H131: 43375 | I131: 43375 | J131: 43375 | K131: 43375 | L131: 43375 | M131: 43375
A132: Reservas de Reavaliação | B132: 124 | C132: 122 | D132: 119 | E132: 117 | F132: 115 | G132: 113 | H132: 111 | I132: 108 | J132: 106 | K132: 104 | L132: 102 | M132: 100
A133: Reservas de Lucros | B133: =B134+B135 -> 365958 | C133: 438511 | D133: 438511 | E133: 463107 | F133: 463107 | G133: 541621 | H133: 541621 | I133: 478082 | J133: 478011 | K133: 478002 | L133: 478002 | M133: 620624 | N133: 0 | O133: 0 | P133: 0 | Q133: 0 | R133: 0 | S133: 0 | T133: 0 | U133: 0 | V133: 0 | W133: 0 | X133: 0 | Y133: 0
A134: Reserva Legal | B134: 70911 | C134: 74538 | D134: 74538 | E134: 78463 | F134: 78463 | G134: 83490 | H134: 83490 | I134: 87688 | J134: 87688 | K134: 87688 | L134: 87688 | M134: 97716 | N134: 0 | O134: 0 | P134: 0 | Q134: 0 | R134: 0 | S134: 0 | T134: 0 | U134: 0 | V134: 0 | W134: 0 | X134: 0 | Y134: 0
A135: Reservas Estatutárias | B135: 295047 | C135: 363973 | D135: 363973 | E135: 384644 | F135: 384644 | G135: 458131 | H135: 458131 | I135: 390394 | J135: 390323 | K135: 390314 | L135: 390314 | M135: 522908 | N135: =SUM(N136:N137) -> 0 | O135: 0 | P135: 0 | Q135: 0 | R135: 0 | S135: 0 | T135: 0 | U135: 0 | V135: 0 | W135: 0 | X135: 0 | Y135: 0
A136: Para Pagamento de Dividendos | B136: 14609 | C136: 21502 | D136: 21502 | E136: 23569 | F136: 23569 | G136: 30918 | H136: 30918 | I136: 34627 | J136: 34627 | K136: 0 | L136: 0 | M136: 0 | N136: 0 | O136: 0 | P136: 0 | Q136: 0 | R136: 0 | S136: 0 | T136: 0 | U136: 0 | V136: 0 | W136: 0 | X136: 0 | Y136: 0
A137: Para Aumento de Capital | B137: 280438 | C137: 342471 | D137: 342471 | E137: 361075 | F137: 361075 | G137: 427213 | H137: 427213 | I137: 355767 | J137: 355696 | K137: 0 | L137: 0 | M137: 0 | N137: 0 | O137: 0 | P137: 0 | Q137: 0 | R137: 0 | S137: 0 | T137: 0 | U137: 0 | V137: 0 | W137: 0 | X137: 0 | Y137: 0
A138: Outros Resultados Abrangentes | B138: =B139 -> -14820 | C138: -19695 | D138: -21615 | E138: -11339 | F138: -11602 | G138: -10339 | H138: -5109 | I138: 11000 | J138: 13368 | K138: 15695 | L138: 15983 | M138: 15201 | N138: 0 | O138: 0 | P138: 0 | Q138: 0 | R138: 0 | S138: 0 | T138: 0 | U138: 0 | V138: 0 | W138: 0 | X138: 0 | Y138: 0
A139: Ajustes de Avaliação Patrimonial | B139: -14820 | C139: -19695 | D139: -21615 | E139: -11339 | F139: -11602 | G139: -10339 | H139: -5109 | I139: 11000 | J139: 13368 | K139: 15695 | L139: 15983 | M139: 15201
A140: Lucros Acumulados | B140: 46934 | C140: 0 | D140: 27180 | E140: 0 | F140: 51243 | G140: 0 | H140: 40130 | I140: 0 | J140: 47119 | K140: 71813 | L140: 96280 | M140: 0
A141: Participação dos Não Controladores | B141: 45296 | C141: 45706 | D141: 46051 | E141: 45939 | F141: 45832 | G141: 45564 | H141: 45558 | I141: 46977 | J141: 47204 | K141: 47191 | L141: 46708 | M141: 46531
A143: TOTAL DO PASSIVO E PATRIMÔNIO LÍQUIDO | B143: =B83+B106+B109+B113+B126+B128 -> 10087527 | C143: 10747166 | D143: 10158015 | E143: 10718363 | F143: 10730786 | G143: 11530824 | H143: 11950964 | I143: 12423365 | J143: 13041042 | K143: 14348764 | L143: 14329731 | M143: 14848428 | N143: 0 | O143: 0 | P143: 0 | Q143: 0 | R143: 0 | S143: 0 | T143: 0 | U143: 0 | V143: 0 | W143: 0 | X143: 0 | Y143: 0
B144: =B79-B143 -> 0 | C144: 0 | D144: 0 | E144: 0 | F144: 0 | G144: 0 | H144: 0 | I144: 0 | J144: 0 | K144: 0 | L144: 0 | M144: =M79-M143 -> 0 | N144: 0 | O144: 0 | P144: 0 | Q144: 0 | R144: 0 | S144: 0 | T144: 0 | U144: 0 | V144: 0 | W144: 0 | X144: 0 | Y144: 0

Sheet DRE Trimestral
A2: Banco Mercantil do Brasil SA
A4: Planilha de Séries Históricas
B6: Índice | M6: Índice
A7: DRE Contábil (Consolidado)
A8: (R$ mil)
B9: 1T20 | C9: 2T20 | D9: 3T20 | E9: 4T20 | F9: 1T21 | G9: 2T21 | H9: 3T21 | I9: 4T21 | J9: 1T22 | K9: 2T22 | L9: 3T22 | M9: 4T22 | N9: 1T23 | O9: 2T23 | P9: 3T23 | Q9: 4T23 | R9: 1T24 | S9: 2T24 | T9: 3T24 | U9: 4T24 | V9: 1T25 | W9: 2T25 | X9: 3T25 | Y9: 4T25
A10: RECEITAS DA INTERMEDIAÇÃO FINANCEIRA | B10: =SUM(B11:B16) -> 664161 | C10: 560821 | D10: 502116 | E10: 573627 | F10: 577886 | G10: 651547 | H10: 704008 | I10: 673064 | J10: 826196 | K10: 903615 | L10: 949833 | M10: 991376 | N10: 0 | O10: 0 | P10: 0 | Q10: 0 | R10: 0 | S10: 0 | T10: 0 | U10: 0 | V10: 0 | W10: 0 | X10: 0 | Y10: 0
A11: Operações de Crédito | B11: 459417 | C11: 472455 | D11: 464980 | E11: 516950 | F11: 490461 | G11: 561883 | H11: 617284 | I11: 631587 | J11: 728867 | K11: 762272 | L11: 851980 | M11: =3229552-L11-K11-J11 -> 886433 | N11: 0 | O11: 0 | P11: 0 | Q11: 0 | R11: 0 | S11: 0 | T11: 0 | U11: 0 | V11: 0 | W11: 0 | X11: 0 | Y11: 0
A12: Resultado de Operações com Títulos e Valores Mobiliários | B12: 40172 | C12: 37389 | D12: 16886 | E12: 14969 | F12: 11928 | G12: 16192 | H12: 28221 | I12: 43402 | J12: 45867 | K12: 71183 | L12: 88186 | M12: =287711-L12-K12-J12 -> 82475 | N12: 0 | O12: 0 | P12: 0 | Q12: 0 | R12: 0 | S12: 0 | T12: 0 | U12: 0 | V12: 0 | W12: 0 | X12: 0 | Y12: 0
A13: Resultado com Instrumentos Financeiros Derivativos | B13: 118985 | C13: 14480 | D13: -18166 | E13: 1741 | F13: 12703 | G13: 17114 | H13: 17820 | I13: -6131 | J13: 24068 | K13: 41657 | L13: -31439 | M13: =56121-L13-K13-J13 -> 21835 | N13: 0 | O13: 0 | P13: 0 | Q13: 0 | R13: 0 | S13: 0 | T13: 0 | U13: 0 | V13: 0 | W13: 0 | X13: 0 | Y13: 0
A14: Resultado de Operações de Câmbio | B14: 25674 | C14: 8015 | D14: 8268 | E14: -8229 | F14: 11886 | G14: -13061 | H14: 10709 | I14: 4636 | J14: -3511 | K14: 3 | L14: 68 | M14: =-3470-L14-K14-J14 -> -30 | N14: 0 | O14: 0 | P14: 0 | Q14: 0 | R14: 0 | S14: 0 | T14: 0 | U14: 0 | V14: 0 | W14: 0 | X14: 0 | Y14: 0
A15: Resultado das Aplicações Compulsórias | B15: 699 | C15: 712 | D15: 654 | E15: 532 | F15: 530 | G15: 951 | H15: 1027 | I15: 1128 | J15: 1597 | K15: 1477 | L15: 1433 | M15: =5503-L15-K15-J15 -> 996 | N15: 0 | O15: 0 | P15: 0 | Q15: 0 | R15: 0 | S15: 0 | T15: 0 | U15: 0 | V15: 0 | W15: 0 | X15: 0 | Y15: 0
A16: Operações de Venda ou de Transferência de Ativos Financeiros | B16: 19214 | C16: 27770 | D16: 29494 | E16: 47664 | F16: 50378 | G16: 68468 | H16: 28947 | I16: -1558 | J16: 29308 | K16: 27023 | L16: 39605 | M16: =95603-L16-K16-J16 -> -333 | N16: 0 | O16: 0 | P16: 0 | Q16: 0 | R16: 0 | S16: 0 | T16: 0 | U16: 0 | V16: 0 | W16: 0 | X16: 0 | Y16: 0
A18: DESPESAS DA INTERMEDIAÇÃO FINANCEIRA | B18: =SUM(B19:B21) -> -258258 | C18: -112004 | D18: -27619 | E18: -39482 | F18: -41563 | G18: -64192 | H18: -107555 | I18: -159466 | J18: -220349 | K18: -292154 | L18: -342390 | M18: =SUM(M19:M21) -> -350172 | N18: 0 | O18: 0 | P18: 0 | Q18: 0 | R18: 0 | S18: 0 | T18: 0 | U18: 0 | V18: 0 | W18: 0 | X18: 0 | Y18: 0
A19: Operações de Captação no Mercado | B19: -249890 | C19: -109255 | D19: -24002 | E19: -39357 | F19: -41358 | G19: -64048 | H19: -105245 | I19: -158859 | J19: -206777 | K19: -269171 | L19: -312493 | M19: =-1112628-L19-K19-J19 -> -324187 | N19: 0 | O19: 0 | P19: 0 | Q19: 0 | R19: 0 | S19: 0 | T19: 0 | U19: 0 | V19: 0 | W19: 0 | X19: 0 | Y19: 0
A20: Operações de Empréstimos, Cessões e Repasses | B20: -7149 | C20: -1952 | D20: -2860 | E20: 187 | F20: -44 | G20: -58 | H20: -130 | I20: -211 | J20: -244 | K20: -171 | L20: -231 | M20: =-924-L20-K20-J20 -> -278 | N20: 0 | O20: 0 | P20: 0 | Q20: 0 | R20: 0 | S20: 0 | T20: 0 | U20: 0 | V20: 0 | W20: 0 | X20: 0 | Y20: 0
A21: Operações de Venda ou de Transferência de Ativos Financeiros | B21: -1219 | C21: -797 | D21: -757 | E21: -312 | F21: -161 | G21: -86 | H21: -2180 | I21: -396 | J21: -13328 | K21: -22812 | L21: -29666 | M21: =-91513-L21-K21-J21 -> -25707 | N21: 0 | O21: 0 | P21: 0 | Q21: 0 | R21: 0 | S21: 0 | T21: 0 | U21: 0 | V21: 0 | W21: 0 | X21: 0 | Y21: 0
A22: RESULTADO DA INTERMEDIAÇÃO FINANCEIRA | B22: =B10+B18 -> 405903 | C22: 448817 | D22: 474497 | E22: 534145 | F22: 536323 | G22: 587355 | H22: 596453 | I22: 513598 | J22: 605847 | K22: 611461 | L22: 607443 | M22: 641204 | N22: 0 | O22: 0 | P22: 0 | Q22: 0 | R22: 0 | S22: 0 | T22: 0 | U22: 0 | V22: 0 | W22: 0 | X22: 0 | Y22: 0
A24: PROVISÃO PARA PERDAS ESPERADAS ASSOCIADAS AO RISCO DE CRÉDITO | B24: -75839 | C24: -88546 | D24: -88904 | E24: -73021 | F24: -57795 | G24: -86835 | H24: -81340 | I24: -118727 | J24: -106821 | K24: -29744 | L24: -95242 | M24: =-327431-L24-K24-J24 -> -95624 | N24: 0 | O24: 0 | P24: 0 | Q24: 0 | R24: 0 | S24: 0 | T24: 0 | U24: 0 | V24: 0 | W24: 0 | X24: 0 | Y24: 0
A26: RESULTADO BRUTO DA INTERMEDIAÇÃO FINANCEIRA | B26: =B22+B24 -> 330064 | C26: 360271 | D26: 385593 | E26: 461124 | F26: 478528 | G26: 500520 | H26: 515113 | I26: =I22+I24 -> 394871 | J26: 499026 | K26: 581717 | L26: 512201 | M26: 545580 | N26: 0 | O26: 0 | P26: 0 | Q26: 0 | R26: 0 | S26: 0 | T26: 0 | U26: 0 | V26: 0 | W26: 0 | X26: 0 | Y26: 0
A28: OUTRAS RECEITAS / (DESPESAS) OPERACIONAIS | B28: =B29+B32+B33+B34+B35+B36+B37 -> -260104 | C28: =C29+C32+C33+C34+C35+C36+C37 -> -298221 | D28: -334680 | E28: -398836 | F28: -387955 | G28: -431839 | H28: -446080 | I28: -459285 | J28: -434232 | K28: -504971 | L28: -479943 | M28: -467836 | N28: 0 | O28: 0 | P28: 0 | Q28: 0 | R28: 0 | S28: 0 | T28: 0 | U28: 0 | V28: 0 | W28: 0 | X28: 0 | Y28: 0
A29: Receitas de Prestação de Serviços | B29: =B30+B31 -> 78741 | C29: 83367 | D29: 76934 | E29: 79357 | F29: 79982 | G29: 87400 | H29: 88981 | I29: 96231 | J29: 98618 | K29: 100936 | L29: 110610 | M29: 124706 | N29: 0 | O29: 0 | P29: 0 | Q29: 0 | R29: 0 | S29: 0 | T29: 0 | U29: 0 | V29: 0 | W29: 0 | X29: 0 | Y29: 0
A30: Receitas de Prestações de Serviços - Diversas | B30: 18741 | C30: 20425 | D30: 24362 | E30: 32994 | F30: 33347 | G30: 40403 | H30: 42225 | I30: 49427 | J30: 47756 | K30: 47742 | L30: 53062 | M30: =210075-L30-K30-J30 -> 61515 | N30: 0 | O30: 0 | P30: 0 | Q30: 0 | R30: 0 | S30: 0 | T30: 0 | U30: 0 | V30: 0 | W30: 0 | X30: 0 | Y30: 0
A31: Rendas de Tarifas Bancárias | B31: 60000 | C31: 62942 | D31: 52572 | E31: 46363 | F31: 46635 | G31: 46997 | H31: 46756 | I31: 46804 | J31: 50862 | K31: 53194 | L31: 57548 | M31: =224795-L31-K31-J31 -> 63191 | N31: 0 | O31: 0 | P31: 0 | Q31: 0 | R31: 0 | S31: 0 | T31: 0 | U31: 0 | V31: 0 | W31: 0 | X31: 0 | Y31: 0
A32: Despesas de Pessoal | B32: -106348 | C32: -110204 | D32: -121257 | E32: -121045 | F32: -120294 | G32: -114924 | H32: -134677 | I32: -130545 | J32: -115594 | K32: -118467 | L32: -129320 | M32: =-497289-L32-K32-J32 -> -133908 | N32: 0 | O32: 0 | P32: 0 | Q32: 0 | R32: 0 | S32: 0 | T32: 0 | U32: 0 | V32: 0 | W32: 0 | X32: 0 | Y32: 0
A33: Outras Despesas Administrativas | B33: -157063 | C33: -165828 | D33: -164697 | E33: -196265 | F33: -192282 | G33: -248088 | H33: -207116 | I33: -203964 | J33: -222297 | K33: -221078 | L33: -213190 | M33: =-846801-L33-K33-J33 -> -190236 | N33: 0 | O33: 0 | P33: 0 | Q33: 0 | R33: 0 | S33: 0 | T33: 0 | U33: 0 | V33: 0 | W33: 0 | X33: 0 | Y33: 0
A34: Despesas Tributárias | B34: -26342 | C34: -28803 | D34: -30227 | E34: -32434 | F34: -33872 | G34: -40744 | H34: -36252 | I34: -37630 | J34: -38510 | K34: -41338 | L34: -40245 | M34: =-165545-L34-K34-J34 -> -45452 | N34: 0 | O34: 0 | P34: 0 | Q34: 0 | R34: 0 | S34: 0 | T34: 0 | U34: 0 | V34: 0 | W34: 0 | X34: 0 | Y34: 0
A35: Outras Receitas Operacionais | B35: 30427 | C35: 5822 | D35: 11400 | E35: 4589 | F35: 7199 | G35: 26843 | H35: 18494 | I35: 39402 | J35: 40505 | K35: 11197 | L35: 18311 | M35: =91173-L35-K35-J35 -> 21160 | N35: 0 | O35: 0 | P35: 0 | Q35: 0 | R35: 0 | S35: 0 | T35: 0 | U35: 0 | V35: 0 | W35: 0 | X35: 0 | Y35: 0
A36: Outras Despesas Operacionais | B36: -79519 | C36: -82575 | D36: -106833 | E36: -133038 | F36: -128688 | G36: -142326 | H36: -175510 | I36: -222779 | J36: -171257 | K36: -198453 | L36: -208647 | M36: =-789791-L36-K36-J36 -> -211434 | N36: 0 | O36: 0 | P36: 0 | Q36: 0 | R36: 0 | S36: 0 | T36: 0 | U36: 0 | V36: 0 | W36: 0 | X36: 0 | Y36: 0
A37: Reversões / (Despesas) de Provisões | B37: 0 | C37: 0 | D37: 0 | E37: 0 | F37: 0 | G37: 0 | H37: 0 | I37: 0 | J37: -25697 | K37: -37768 | L37: -17462 | M37: =-113599-L37-K37-J37 -> -32672
A39: RESULTADO OPERACIONAL | B39: =B26+B28 -> 69960 | C39: 62050 | D39: 50913 | E39: =E26+E28 -> 62288 | F39: 90573 | G39: 68681 | H39: 69033 | I39: -64414 | J39: 64794 | K39: 76746 | L39: 32258 | M39: =M26+M28 -> 77744 | N39: 0 | O39: 0 | P39: 0 | Q39: 0 | R39: 0 | S39: 0 | T39: 0 | U39: 0 | V39: 0 | W39: 0 | X39: 0 | Y39: 0
A41: RESULTADO NÃO OPERACIONAL | B41: =B42+B43 -> -6430 | C41: -6393 | D41: -1001 | E41: -2207 | F41: -7040 | G41: 3639 | H41: 13624 | I41: -6732 | J41: 780 | K41: 3186 | L41: 250 | M41: 8375 | N41: 0 | O41: 0 | P41: 0 | Q41: 0 | R41: 0 | S41: 0 | T41: 0 | U41: 0 | V41: 0 | W41: 0 | X41: 0 | Y41: 0
A42: Receitas | B42: 24068 | C42: 6789 | D42: 17738 | E42: 8058 | F42: 2261 | G42: 4791 | H42: 14119 | I42: 969 | J42: 1129 | K42: 5286 | L42: 861 | M42: =19276-L42-K42-J42 -> 12000 | N42: 0 | O42: 0 | P42: 0 | Q42: 0 | R42: 0 | S42: 0 | T42: 0 | U42: 0 | V42: 0 | W42: 0 | X42: 0 | Y42: 0
A43: Despesas | B43: -30498 | C43: -13182 | D43: -18739 | E43: -10265 | F43: -9301 | G43: -1152 | H43: -495 | I43: -7701 | J43: -349 | K43: -2100 | L43: -611 | M43: =-6685-L43-K43-J43 -> -3625 | N43: 0 | O43: 0 | P43: 0 | Q43: 0 | R43: 0 | S43: 0 | T43: 0 | U43: 0 | V43: 0 | W43: 0 | X43: 0 | Y43: 0
A45: RESULTADO ANTES DA TRIBUTAÇÃO SOBRE O LUCRO E PARTICIPAÇÕES | B45: =B39+B41 -> 63530 | C45: 55657 | D45: 49912 | E45: 60081 | F45: 83533 | G45: 72320 | H45: 82657 | I45: -71146 | J45: 65574 | K45: 79932 | L45: 32508 | M45: =M39+M41 -> 86119 | N45: 0 | O45: 0 | P45: 0 | Q45: 0 | R45: 0 | S45: 0 | T45: 0 | U45: 0 | V45: 0 | W45: 0 | X45: 0 | Y45: 0
A47: IMPOSTO DE RENDA E CONTRIBUIÇÃO SOCIAL | B47: =SUM(B48:B50) -> -16338 | C47: -16255 | D47: -17161 | E47: -633 | F47: -23540 | G47: -12799 | H47: -34357 | I47: 124982 | J47: -18431 | K47: -31668 | L47: 7112 | M47: -20531 | N47: 0 | O47: 0 | P47: 0 | Q47: 0 | R47: 0 | S47: 0 | T47: 0 | U47: 0 | V47: 0 | W47: 0 | X47: 0 | Y47: 0
A48: Provisão para Imposto de Renda | B48: -3197 | C48: -4889 | D48: 472 | E48: -2354 | F48: -11499 | G48: -3372 | H48: -14485 | I48: 25107 | J48: 16968 | K48: -7392 | L48: -8250 | M48: =-5597-L48-K48-J48 -> -6923 | N48: 0 | O48: 0 | P48: 0 | Q48: 0 | R48: 0 | S48: 0 | T48: 0 | U48: 0 | V48: 0 | W48: 0 | X48: 0 | Y48: 0
A49: Provisão para Contribuição Social | B49: -2069 | C49: -3204 | D49: 1114 | E49: -967 | F49: -8137 | G49: -1354 | H49: -12611 | I49: 21554 | J49: 12423 | K49: -2720 | L49: -3921 | M49: =4454-L49-K49-J49 -> -1328 | N49: 0 | O49: 0 | P49: 0 | Q49: 0 | R49: 0 | S49: 0 | T49: 0 | U49: 0 | V49: 0 | W49: 0 | X49: 0 | Y49: 0
A50: Ativo Fiscal Diferido | B50: -11072 | C50: -8162 | D50: -18747 | E50: 2688 | F50: -3904 | G50: -8073 | H50: -7261 | I50: 78321 | J50: -47822 | K50: -21556 | L50: 19283 | M50: =-62375-L50-K50-J50 -> -12280 | N50: 0 | O50: 0 | P50: 0 | Q50: 0 | R50: 0 | S50: 0 | T50: 0 | U50: 0 | V50: 0 | W50: 0 | X50: 0 | Y50: 0
A52: PARTICIPAÇÕES ESTATUTÁRIAS NO LUCRO | B52: =B53+B54 -> -11 | C52: -12388 | D52: -4370 | E52: -8669 | F52: -8556 | G52: -10044 | H52: -8157 | I52: -7530 | J52: 0 | K52: 0 | L52: 0 | M52: 0 | N52: 0 | O52: 0 | P52: 0 | Q52: 0 | R52: 0 | S52: 0 | T52: 0 | U52: 0 | V52: 0 | W52: 0 | X52: 0 | Y52: 0
A53: Administradores | B53: 0 | C53: -750 | D53: 0 | E53: -1540 | F53: -1689 | G53: -1527 | H53: -1680 | I53: -316 | J53: 0 | K53: 0 | L53: 0 | M53: 0 | N53: 0 | O53: 0 | P53: 0 | Q53: 0 | R53: 0 | S53: 0 | T53: 0 | U53: 0 | V53: 0 | W53: 0 | X53: 0 | Y53: 0
A54: Empregados | B54: -11 | C54: -11638 | D54: -4370 | E54: -7129 | F54: -6867 | G54: -8517 | H54: -6477 | I54: -7214 | J54: 0 | K54: 0 | L54: 0 | M54: 0 | N54: 0 | O54: 0 | P54: 0 | Q54: 0 | R54: 0 | S54: 0 | T54: 0 | U54: 0 | V54: 0 | W54: 0 | X54: 0 | Y54: 0
A56: PARTICIPAÇÃO DOS NÃO CONTROLADORES | B56: -249 | C56: -360 | D56: -379 | E56: -1319 | F56: -196 | G56: -179 | H56: -15 | I56: -2486 | J56: -26 | K56: -81 | L56: 480 | M56: =-44-L56-K56-J56 -> -417 | N56: 0 | O56: 0 | P56: 0 | Q56: 0 | R56: 0 | S56: 0 | T56: 0 | U56: 0 | V56: 0 | W56: 0 | X56: 0 | Y56: 0
A58: LUCRO LÍQUIDO | B58: =B45+B47+B52+B56 -> 46932 | C58: 26654 | D58: 28002 | E58: 49460 | F58: 51241 | G58: 49298 | H58: 40128 | I58: 43820 | J58: 47117 | K58: 48183 | L58: 40100 | M58: =M45+M47+M52+M56 -> 65171 | N58: 0 | O58: 0 | P58: 0 | Q58: 0 | R58: 0 | S58: 0 | T58: 0 | U58: 0 | V58: 0 | W58: 0 | X58: 0 | Y58: 0
E60: =E58+D58+C58+B58-'DRE Anual'!B58 -> 0 | I60: =F58+G58+H58+I58-'DRE Anual'!C58 -> 0 | M60: =J58+K58+L58+M58-'DRE Anual'!D58 -> 0

Sheet DRE Anual
A2: Banco Mercantil do Brasil SA
A4: Planilha de Séries Históricas
B6: Índice
A7: DRE Contábil (Consolidado)
A8: (R$ Mil)
B9: 2020 | C9: 2021 | D9: 2022 | E9: 2023 | F9: 2024 | G9: 2025
A10: RECEITAS DA INTERMEDIAÇÃO FINANCEIRA | B10: =SUM(B11:B16) -> 2300725 | C10: 2606505 | D10: 3671020 | E10: 0 | F10: 0 | G10: 0
A11: Operações de Crédito | B11: ='[4]DRE-BACEN-2020'!$K$12 -> 1913802 | C11: ='[8]DRE-BACEN-2021'!$L$12 -> 2301215 | D11: 3229552
A12: Resultado de Operações com Títulos e Valores Mobiliários | B12: ='[4]DRE-BACEN-2020'!$K$13 -> 109416 | C12: ='[8]DRE-BACEN-2021'!$L$13 -> 99743 | D12: 287711
A13: Resultado com Instrumentos Financeiros Derivativos | B13: ='[4]DRE-BACEN-2020'!$K$14 -> 117040 | C13: ='[8]DRE-BACEN-2021'!$L$14 -> 41506 | D13: 56121
A14: Resultado de Operações de Câmbio | B14: ='[4]DRE-BACEN-2020'!$K$15 -> 33728 | C14: ='[8]DRE-BACEN-2021'!$L$15 -> 14170 | D14: -3470
A15: Resultado das Aplicações Compulsórias | B15: ='[4]DRE-BACEN-2020'!$K$16 -> 2597 | C15: ='[8]DRE-BACEN-2021'!$L$16 -> 3636 | D15: 5503
A16: Operações de Venda ou de Transferência de Ativos Financeiros | B16: ='[4]DRE-BACEN-2020'!$K$17 -> 124142 | C16: ='[8]DRE-BACEN-2021'!$L$17 -> 146235 | D16: 95603
A18: DESPESAS DA INTERMEDIAÇÃO FINANCEIRA | B18: =SUM(B19:B21) -> -437363 | C18: -372776 | D18: -1205065 | E18: 0 | F18: 0 | G18: 0
A19: Operações de Captação no Mercado | B19: ='[4]DRE-BACEN-2020'!$K$20 -> -422504 | C19: ='[8]DRE-BACEN-2021'!$L$20 -> -369510 | D19: -1112628
A20: Operações de Empréstimos, Cessões e Repasses | B20: ='[4]DRE-BACEN-2020'!$K$21 -> -11774 | C20: ='[8]DRE-BACEN-2021'!$L$21 -> -443 | D20: -924
A21: Operações de Venda ou de Transferência de Ativos Financeiros | B21: ='[4]DRE-BACEN-2020'!$K$23 -> -3085 | C21: ='[8]DRE-BACEN-2021'!$L$23 -> -2823 | D21: -91513
A22: RESULTADO DA INTERMEDIAÇÃO FINANCEIRA | B22: =B10+B18 -> 1863362 | C22: 2233729 | D22: 2465955 | E22: 0 | F22: 0 | G22: 0
A24: PROVISÃO PARA PERDAS ESPERADAS ASSOCIADAS AO RISCO DE CRÉDITO | B24: ='[4]DRE-BACEN-2020'!$K$27 -> -326310 | C24: ='[8]DRE-BACEN-2021'!$L$26 -> -344697 | D24: -327431
A26: RESULTADO BRUTO DA INTERMEDIAÇÃO FINANCEIRA | B26: =B22+B24 -> 1537052 | C26: 1889032 | D26: 2138524 | E26: 0 | F26: 0 | G26: 0
A28: OUTRAS RECEITAS / (DESPESAS) OPERACIONAIS | B28: =B29+B32+B33+B34+B35+B36+B37 -> -1291841 | C28: =C29+C32+C33+C34+C35+C36+C37 -> -1725159 | D28: -1886982 | E28: 0 | F28: 0 | G28: 0
A29: Receitas de Prestação de Serviços | B29: =B30+B31 -> 318399 | C29: 352594 | D29: 434870 | E29: 0 | F29: 0 | G29: 0
A30: Receitas de Prestações de Serviços - Diversas | B30: ='[4]DRE-BACEN-2020'!$K$33 -> 96522 | C30: ='[8]DRE-BACEN-2021'!$L$32 -> 165402 | D30: 210075
A31: Rendas de Tarifas Bancárias | B31: ='[4]DRE-BACEN-2020'!$K$34 -> 221877 | C31: ='[8]DRE-BACEN-2021'!$L$33 -> 187192 | D31: 224795
A32: Despesas de Pessoal | B32: ='[4]DRE-BACEN-2020'!$K$38 -> -458854 | C32: ='[8]DRE-BACEN-2021'!$L$37 -> -500440 | D32: -497289
A33: Outras Despesas Administrativas | B33: ='[4]DRE-BACEN-2020'!$K$39 -> -683853 | C33: ='[8]DRE-BACEN-2021'!$L$38 -> -851450 | D33: -846801
A34: Despesas Tributárias | B34: ='[4]DRE-BACEN-2020'!$K$40 -> -117806 | C34: ='[8]DRE-BACEN-2021'!$L$39 -> -148498 | D34: -165545
A35: Outras Receitas Operacionais | B35: ='[4]DRE-BACEN-2020'!$K$41 -> 52238 | C35: ='[8]DRE-BACEN-2021'!$L$40 -> 91938 | D35: 91173
A36: Outras Despesas Operacionais | B36: ='[4]DRE-BACEN-2020'!$K$46 -> -401965 | C36: ='[8]DRE-BACEN-2021'!$L$45 -> -669303 | D36: -789791
A37: Reversões / (Despesas) de Provisões | B37: 0 | C37: 0 | D37: -113599
A39: RESULTADO OPERACIONAL | B39: =B26+B28 -> 245211 | C39: 163873 | D39: 251542 | E39: 0 | F39: 0 | G39: 0
A41: RESULTADO NÃO OPERACIONAL | B41: =B42+B43 -> -16031 | C41: 3491 | D41: 12591 | E41: 0 | F41: 0 | G41: 0
A42: Receitas | B42: ='[4]DRE-BACEN-2020'!$K$59 -> 56653 | C42: ='[8]DRE-BACEN-2021'!$L$58 -> 22140 | D42: 19276
A43: Despesas | B43: ='[4]DRE-BACEN-2020'!$K$60 -> -72684 | C43: ='[8]DRE-BACEN-2021'!$L$59 -> -18649 | D43: -6685
A45: RESULTADO ANTES DA TRIBUTAÇÃO SOBRE O LUCRO E PARTICIPAÇÕES | B45: =B39+B41 -> 229180 | C45: 167364 | D45: 264133 | E45: 0 | F45: 0 | G45: 0
A47: IMPOSTO DE RENDA E CONTRIBUIÇÃO SOCIAL | B47: =SUM(B48:B50) -> -50387 | C47: =SUM(C48:C50) -> 54286 | D47: =SUM(D48:D50) -> -63518 | E47: =SUM(E48:E50) -> 0 | F47: =SUM(F48:F50) -> 0 | G47: =SUM(G48:G50) -> 0
A48: Provisão para Imposto de Renda | B48: ='[4]DRE-BACEN-2020'!$K$65 -> -9968 | C48: ='[8]DRE-BACEN-2021'!$L$64 -> -4249 | D48: -5597
A49: Provisão para Contribuição Social | B49: ='[4]DRE-BACEN-2020'!$K$66 -> -5126 | C49: ='[8]DRE-BACEN-2021'!$L$65 -> -548 | D49: 4454
A50: Ativo Fiscal Diferido | B50: ='[4]DRE-BACEN-2020'!$K$67 -> -35293 | C50: ='[8]DRE-BACEN-2021'!$L$66 -> 59083 | D50: -62375
A52: PARTICIPAÇÕES ESTATUTÁRIAS NO LUCRO | B52: =B53+B54 -> -25438 | C52: =C53+C54 -> -34287 | D52: =D53+D54 -> 0 | E52: =E53+E54 -> 0 | F52: =F53+F54 -> 0 | G52: =G53+G54 -> 0
A53: Administradores | B53: ='[4]DRE-BACEN-2020'!$K$70 -> -2290 | C53: ='[8]DRE-BACEN-2021'!$L$69 -> -5212 | D53: 0
A54: Empregados | B54: ='[4]DRE-BACEN-2020'!$K$71 -> -23148 | C54: ='[8]DRE-BACEN-2021'!$L$70 -> -29075 | D54: 0
A56: PARTICIPAÇÃO DOS NÃO CONTROLADORES | B56: ='[4]DRE-BACEN-2020'!$K$73 -> -2307 | C56: ='[8]DRE-BACEN-2021'!$L$72 -> -2876 | D56: =SUM('DRE Trimestral'!J56:M56) -> -44
A58: LUCRO LÍQUIDO | B58: =B45+B47+B52+B56 -> 151048 | C58: 184487 | D58: 200571 | E58: 0 | F58: 0 | G58: 0

Sheet DRE Gerencial (Trimestral) (hidden)
A2: Banco ABC Brasil S.A.
A4: Planilha de Séries Históricas
B6: Índice | AT6: Índice
A7: DRE Gerencial
A8: (R$ milhões)
B9: 1T08 | C9: 2T08 | D9: 3T08 | E9: 4T08 | F9: 1T09 | G9: 2T09 | H9: 3T09 | I9: 4T09 | J9: 1T10 | K9: 2T10 | L9: 3T10 | M9: 4T10 | N9: 1T11 | O9: 2T11 | P9: 3T11 | Q9: 4T11 | R9: 1T12 | S9: 2T12 | T9: 3T12 | U9: 4T12 | V9: 1T13 | W9: 2T13 | X9: 3T13 | Y9: 4T13 | Z9: 1T14 | AA9: 2T14 | AB9: 3T14 | AC9: 4T14 | AD9: 1T15 | AE9: 2T15 | AF9: 3T15 | AG9: 4T15 | AH9: 1T16 | AI9: 2T16 | AJ9: 3T16 | AK9: 4T16 | AL9: 1T17 | AM9: 2T17 | AN9: 3T17 | AO9: 4T17 | AP9: 1T18 | AQ9: 2T18 | AR9: 3T18 | AS9: 4T18 | AT9: 1T19
A10: DEMONSTRAÇÃO DO RESULTADO GERENCIAL
A11: Margem Financeira Gerencial antes PDD | B11: 86.9 | C11: 96.2 | D11: 104.5 | E11: 103 | F11: 88.9 | G11: 94.5 | H11: 93.8 | I11: 98.7 | J11: 108.5 | K11: 113.3 | L11: 116.9 | M11: 126.4 | N11: 135.4 | O11: 133.5 | P11: 146.8 | Q11: 143.8 | R11: 140.9 | S11: 144.4 | T11: 147.6 | U11: 148.1 | V11: 147.1 | W11: 145.3 | X11: 160.4 | Y11: 189.3 | Z11: 168.5 | AA11: 177.7 | AB11: 188.7 | AC11: 213.3 | AD11: 220.4 | AE11: 225.8 | AF11: 259.4 | AG11: 273 | AH11: 226.1 | AI11: 250.8 | AJ11: 256.3 | AK11: 283.3 | AL11: 265.8 | AM11: 275.824 | AN11: 260.15 | AO11: 276.5575252 | AP11: 233.5194492 | AQ11: 257.131 | AR11: 239.256 | AS11: 245.646 | AT11: 245.646
A12: Margem Financeira com Clientes | B12: 75 | C12: 86.4 | D12: 100.1 | E12: 95.5 | F12: 88.7 | G12: 85.7 | H12: 86 | I12: 87.9 | J12: 93.8 | K12: 104.7 | L12: 109.7 | M12: 113.3 | N12: 121.8 | O12: 118.7 | P12: 137.2 | Q12: 131.1 | R12: 121.6 | S12: 121.6 | T12: 126.4 | U12: 125.4 | V12: 123.5 | W12: 128.4 | X12: 130.8 | Y12: 172.9 | Z12: 147.4 | AA12: 153.1 | AB12: 161.9 | AC12: 177.3 | AD12: 186.9 | AE12: 186.4 | AF12: 204.6 | AG12: 204.8 | AH12: 205.5 | AI12: 199 | AJ12: 210.8 | AK12: 232 | AL12: 220.5 | AM12: 219.4 | AN12: 209.5659336 | AO12: 203.0517464 | AP12: 183 | AQ12: 189.851 | AR12: 188.661918 | AS12: 205.462 | AT12: 192.703
A13: Margem Financeira com Mercado | B13: 11.9 | C13: 9.8 | D13: 4.5 | E13: 2.8 | F13: 0.2 | G13: 8.9 | H13: 7.8 | I13: 10.8 | J13: 14.7 | K13: 8.6 | L13: 7.2 | M13: 13.1 | N13: 13.5 | O13: 14.9 | P13: 9.6 | Q13: 12.7 | R13: 19.3 | S13: 22.7 | T13: 21.1 | U13: 22.7 | V13: 23.6 | W13: 16.9 | X13: 29.6 | Y13: 16.5 | Z13: 21.1 | AA13: 24.6 | AB13: 26.8 | AC13: 36.1 | AD13: 33.4 | AE13: 39.4 | AF13: 54.8 | AG13: 68.2 | AH13: 20.5 | AI13: 51.7 | AJ13: 45.5 | AK13: 51.2 | AL13: 45.3 | AM13: 56.46034919 | AN13: 50.58406635 | AO13: 73.50577873 | AP13: 50.52644709 | AQ13: 67.28 | AR13: 50.58687036 | AS13: 40.184 | AT13: 48.024
A14: Provisão para Devedores Duvidosos (PDD) | B14: -7.9 | C14: -6.5 | D14: -11.3 | E14: -54.1 | F14: -25.6 | G14: -14.9 | H14: -8.6 | I14: -4.1 | J14: -13.8 | K14: -9 | L14: -8.9 | M14: -12.7 | N14: -12.3 | O14: -5.7 | P14: -21.9 | Q14: -13.8 | R14: -23.7 | S14: -28.7 | T14: -32.8 | U14: -25.6 | V14: -16.9 | W14: -31.3 | X14: -18.6 | Y14: -26 | Z14: -25.5 | AA14: -14.9 | AB14: -16.8 | AC14: -43.6 | AD14: -43.3 | AE14: -36.4 | AF14: -90.4 | AG14: -48.6 | AH14: -48.9 | AI14: -54.1 | AJ14: -50.2 | AK14: -55.3 | AL14: -57.948 | AM14: -56.614 | AN14: -54.866 | AO14: -50.79521386 | AP14: -22.463 | AQ14: -33.128 | AR14: -33.129 | AS14: -29.491 | AT14: -29.877
A15: Margem Gerencial após PDD | B15: 78.9 | C15: 89.7 | D15: 93.2 | E15: 49 | F15: 63.3 | G15: 79.7 | H15: 85.2 | I15: 94.6 | J15: 94.7 | K15: 104.3 | L15: 108 | M15: 113.7 | N15: 123 | O15: 127.8 | P15: 124.9 | Q15: 130 | R15: 117.2 | S15: 115.7 | T15: 114.7 | U15: 122.5 | V15: 130.3 | W15: 113.9 | X15: 141.8 | Y15: 163.3 | Z15: 143 | AA15: 162.8 | AB15: 171.9 | AC15: 169.7 | AD15: 177.1 | AE15: 189.4 | AF15: 168.9 | AG15: 224.4 | AH15: 177.2 | AI15: 196.7 | AJ15: 206.1 | AK15: 227.9 | AL15: 207.9 | AM15: 219.21 | AN15: 205.284 | AO15: 225.7623113 | AP15: 211.0564492 | AQ15: 224.003 | AR15: 206.127 | AS15: 216.155 | AT15: 210.85
A16: Receitas de Prestação de Serviços | B16: 9.1 | C16: 10.8 | D16: 12.1 | E16: 11.2 | F16: 10.3 | G16: 13.4 | H16: 16.1 | I16: 19.8 | J16: 24.4 | K16: 26.2 | L16: 22.8 | M16: 34.7 | N16: 29.6 | O16: 30.9 | P16: 30 | Q16: 34.8 | R16: 29.3 | S16: 32.1 | T16: 35.2 | U16: 40.8 | V16: 33 | W16: 44.5 | X16: 37.2 | Y16: 42.3 | Z16: 41 | AA16: 41.9 | AB16: 44.7 | AC16: 44.7 | AD16: 45.3 | AE16: 50.5 | AF16: 45.1 | AG16: 58.2 | AH16: 56.1 | AI16: 64.9 | AJ16: 66 | AK16: 69.5 | AL16: 76.3 | AM16: 75.695 | AN16: 71.181 | AO16: 83.697 | AP16: 77.62 | AQ16: 91.467 | AR16: 95.998 | AS16: 94.371 | AT16: 77.721
A17: Despesas | B17: -23.8 | C17: -26.8 | D17: -29.7 | E17: -34.6 | F17: -32.9 | G17: -30.5 | H17: -33.2 | I17: -35.8 | J17: -34.8 | K17: -35.1 | L17: -36.8 | M17: -50.7 | N17: -51.5 | O17: -44.3 | P17: -44.8 | Q17: -48.3 | R17: -46.8 | S17: -51.8 | T17: -48.7 | U17: -54.7 | V17: -50.3 | W17: -53.1 | X17: -53.4 | Y17: -62.5 | Z17: -56.4 | AA17: -57 | AB17: -59.7 | AC17: -65.6 | AD17: -63.5 | AE17: -65.1 | AF17: -69.9 | AG17: -70.1 | AH17: -69.3 | AI17: -69.6 | AJ17: -71.3 | AK17: -78.3 | AL17: -74.3 | AM17: -77.937 | AN17: -74.511 | AO17: -81.988 | AP17: -73.821 | AQ17: -76.926 | AR17: -77.3591 | AS17: -80.137 | AT17: -81.175
A18: Despesas de Pessoal & Outras Administrativas (publicada) | B18: -23.9 | C18: -26.9 | D18: -29.9 | E18: -47.2 | F18: -33 | G18: -30.7 | H18: -33.6 | I18: -35.9 | J18: -35.3 | K18: -35.9 | L18: -36.8 | M18: -50.7 | N18: -51.5 | O18: -44.3 | P18: -44.8 | Q18: -48.3 | R18: -46.8 | S18: -51.8 | T18: -48.7 | U18: -54.7 | V18: -50.3 | W18: -53.1 | X18: -53.4 | Y18: -62.5 | Z18: -56.4 | AA18: -57 | AB18: -59.7 | AC18: -65.6 | AD18: -63.5 | AE18: -65.1 | AF18: -69.9 | AG18: -70.1 | AH18: -69.3 | AI18: -69.6 | AJ18: -71.3 | AK18: -78.3 | AL18: =AL17 -> -74.3 | AM18: -77.937 | AN18: -74.511 | AO18: =AO17 -> -81.988 | AP18: =AP17 -> -73.821 | AQ18: -76.926 | AR18: -77.3591 | AS18: -80.137 | AT18: -81.175
A19: Cessão do consignado | B19: - | C19: - | D19: - | E19: 11.9 | F19: - | G19: - | H19: - | I19: - | J19: - | K19: - | L19: - | M19: - | N19: - | O19: - | P19: - | Q19: - | R19: - | S19: - | T19: - | U19: - | V19: - | W19: - | X19: - | Y19: - | Z19: - | AA19: - | AB19: - | AC19: - | AD19: - | AE19: - | AF19: - | AG19: - | AH19: - | AI19: 0 | AJ19: 0 | AK19: 0 | AL19: 0 | AM19: 0 | AN19: 0 | AO19: 0 | AP19: 0 | AQ19: 0 | AR19: 0 | AS19: - | AT19: -
A20: Efeito de Contribuições Incentivadas | B20: 0 | C20: 0.1 | D20: 0.2 | E20: 0.7 | F20: 0 | G20: 0.1 | H20: 0.4 | I20: 0.1 | J20: 0.5 | K20: 0.8 | L20: - | M20: - | N20: - | O20: - | P20: - | Q20: - | R20: - | S20: - | T20: - | U20: - | V20: - | W20: - | X20: - | Y20: - | Z20: - | AA20: - | AB20: - | AC20: - | AD20: - | AE20: - | AF20: - | AG20: - | AH20: - | AI20: 0 | AJ20: 0 | AK20: 0 | AL20: 0 | AM20: 0 | AN20: 0 | AO20: 0 | AP20: 0 | AQ20: 0 | AR20: 0 | AS20: - | AT20: -
A21: Despesas Tributárias | B21: -0.8 | C21: -0.7 | D21: -0.8 | E21: -0.6 | F21: -0.5 | G21: -0.5 | H21: -0.6 | I21: -3.5 | J21: -8.3 | K21: -8.3 | L21: -8.7 | M21: -8.9 | N21: -10 | O21: -10.5 | P21: -8.9 | Q21: -1.1 | R21: -10.1 | S21: -8.3 | T21: -10 | U21: -10.1 | V21: -10.1 | W21: -8.5 | X21: -10.5 | Y21: -12.3 | Z21: -11.3 | AA21: -11.1 | AB21: -8.6 | AC21: -9 | AD21: -15.9 | AE21: -11 | AF21: -20.4 | AG21: -10.2 | AH21: 2.1 | AI21: -4.2 | AJ21: -13 | AK21: -22.2 | AL21: -15.2 | AM21: -17.45641929 | AN21: -16.67986947 | AO21: -20.17771882 | AP21: -13.88992041 | AQ21: -28.904 | AR21: -20.13 | AS21: -15.445 | AT21: -11.473
A22: Outras Receitas (Despesas) Operacionais Ajustada | B22: -5 | C22: -5.3 | D22: -5.6 | E22: -6.6 | F22: -3.9 | G22: -6.8 | H22: -5.3 | I22: -24 | J22: -3.6 | K22: -7.5 | L22: -6.3 | M22: -0.8 | N22: -2.2 | O22: 0.4 | P22: -2 | Q22: 3.5 | R22: 2.5 | S22: 4 | T22: 0.1 | U22: -0.6 | V22: -1.7 | W22: 12.6 | X22: -1.3 | Y22: -10.3 | Z22: 4.4 | AA22: 1.7 | AB22: -10.1 | AC22: -6.7 | AD22: -4.4 | AE22: -6.2 | AF22: -1.8 | AG22: -16.5 | AH22: 7.3 | AI22: -6.5 | AJ22: -9.7 | AK22: -5.6 | AL22: 5.6 | AM22: -1.853 | AN22: 2.924 | AO22: -3.949 | AP22: -0.567 | AQ22: -0.775 | AR22: -0.5149 | AS22: 2.424 | AT22: 4.713
A23: Resultado não Operacional Gerencial | B23: - | C23: 0 | D23: 1.2 | E23: 0 | F23: -1.7 | G23: -1 | H23: -0.2 | I23: -0.3 | J23: -0.3 | K23: -1.9 | L23: 0.3 | M23: -0.5 | N23: -0.4 | O23: -4 | P23: 2.7 | Q23: -4.2 | R23: -0.9 | S23: -3.8 | T23: -1.4 | U23: -0.4 | V23: 0.1 | W23: -0.6 | X23: -1.1 | Y23: -0.1 | Z23: -0.3 | AA23: -2 | AB23: 0.5 | AC23: -0.5 | AD23: -0.8 | AE23: -2.8 | AF23: -2.9 | AG23: 0.2 | AH23: -7.9 | AI23: -0.3 | AJ23: -1.5 | AK23: -2.5 | AL23: -7.694 | AM23: -10.493 | AN23: -10.582 | AO23: -8.127 | AP23: -9.935 | AQ23: -10.349 | AR23: -0.057 | AS23: -1.07 | AT23: -0.715
A24: Res. antes da Tributação sobre o Lucro e Participações | B24: 59.3 | C24: 68.4 | D24: 71.2 | E24: 19 | F24: 35 | G24: 54.7 | H24: 62.6 | I24: 54.4 | J24: 80.4 | K24: 86.1 | L24: 87.9 | M24: 96.3 | N24: 98.5 | O24: 104.3 | P24: 99.3 | Q24: 104.9 | R24: 91.2 | S24: 87.9 | T24: 89.9 | U24: 97.5 | V24: 101.3 | W24: 108.8 | X24: 112.5 | Y24: 120.5 | Z24: 120.4 | AA24: 136.2 | AB24: 138.6 | AC24: 137.5 | AD24: 137.8 | AE24: 154.7 | AF24: 119 | AG24: 186 | AH24: 165.4 | AI24: 181.1 | AJ24: 176.6 | AK24: 188.8 | AL24: 192.6 | AM24: 187.1655807 | AN24: 177.6161305 | AO24: 195.2175925 | AP24: 190.4635288 | AQ24: 198.516 | AR24: 204.064 | AS24: 216.298 | AT24: 199.921
A25: Imposto de Renda e Contribuição Social Ajustado | B25: -10 | C25: -13.6 | D25: -6 | E25: 16.2 | F25: -2.4 | G25: -17.9 | H25: -15.7 | I25: 14.8 | J25: -16 | K25: -18.3 | L25: -21.5 | M25: -22.9 | N25: -25.8 | O25: -27.3 | P25: -23.8 | Q25: -26.3 | R25: -24.3 | S25: -19.7 | T25: -20.7 | U25: -22.6 | V25: -23.8 | W25: -24.6 | X25: -26.9 | Y25: -22.3 | Z25: -30.1 | AA25: -32.7 | AB25: -37.5 | AC25: -30.8 | AD25: -34.6 | AE25: -39 | AF25: -0.4 | AG25: -51.5 | AH25: -44.4 | AI25: -50.3 | AJ25: -48.8 | AK25: -50 | AL25: -51.4 | AM25: -50.55258071 | AN25: -41.01213053 | AO25: -51.768 | AP25: -41.82352878 | AQ25: -47.642 | AR25: -48.719 | AS25: -54.793 | AT25: -39.554
A26: Participação nos Lucros | B26: -14.5 | C26: -11.9 | D26: -14 | E26: -4.8 | F26: -7.5 | G26: -9.2 | H26: -11.8 | I26: -13.5 | J26: -15.4 | K26: -15.4 | L26: -15 | M26: -19.2 | N26: -17.6 | O26: -16.8 | P26: -17 | Q26: -18 | R26: -10 | S26: -13.1 | T26: -14 | U26: -15.3 | V26: -18.6 | W26: -20.6 | X26: -19.5 | Y26: -23.3 | Z26: -19.6 | AA26: -23.8 | AB26: -23.1 | AC26: -24.5 | AD26: -23 | AE26: -25.6 | AF26: -23.6 | AG26: -29 | AH26: -25.5 | AI26: -26.7 | AJ26: -25 | AK26: -30.3 | AL26: -30.1 | AM26: -29.474 | AN26: -32.47 | AO26: -32.845 | AP26: -40.092 | AQ26: -39.221 | AR26: -39.233 | AS26: -40.061 | AT26: -39.192
A27: Lucro Líquido Recorrente | B27: 34.7 | C27: 42.8 | D27: 44.4 | E27: 15.9 | F27: 24 | G27: 35.4 | H27: 38.1 | I27: 53.7 | J27: 46.9 | K27: 50.2 | L27: 51.1 | M27: 54 | N27: 56.7 | O27: 60.2 | P27: 58.5 | Q27: 60.6 | R27: 56.9 | S27: 55 | T27: 55.1 | U27: 59.6 | V27: 58.9 | W27: 63.5 | X27: 66.1 | Y27: 74.9 | Z27: 70.7 | AA27: 79.8 | AB27: 77.9 | AC27: 82.2 | AD27: 80.3 | AE27: 90.1 | AF27: 95 | AG27: 105.5 | AH27: 95.5 | AI27: 104.1 | AJ27: 102.8 | AK27: 108.5 | AL27: 111.166 | AM27: 107.139 | AN27: 104.134 | AO27: 110.605 | AP27: 108.548 | AQ27: 111.653 | AR27: 116.112 | AS27: 121.444 | AT27: 121.175
A28: Efeitos líquidos de Imposto de Renda | B28: -9.2 | C28: -9.2 | D28: - | E28: - | F28: - | G28: - | H28: - | I28: - | J28: - | K28: - | L28: - | M28: - | N28: - | O28: - | P28: - | Q28: - | R28: - | S28: - | T28: - | U28: - | V28: - | W28: - | X28: - | Y28: - | Z28: - | AA28: - | AB28: - | AC28: - | AD28: - | AE28: - | AF28: - | AG28: - | AH28: - | AI28: 0 | AJ28: 0 | AK28: 0 | AL28: 0 | AM28: 0 | AN28: 0 | AO28: 0 | AP28: 0 | AQ28: 0 | AS28: 0 | AT28: 0
A29: Venda de participação na CETIP | B29: -5.1 | C29: -5.1 | D29: - | E29: - | F29: - | G29: - | H29: - | I29: - | J29: - | K29: - | L29: - | M29: - | N29: - | O29: - | P29: - | Q29: - | R29: - | S29: - | T29: - | U29: - | V29: - | W29: - | X29: - | Y29: - | Z29: - | AA29: - | AB29: - | AC29: - | AD29: - | AE29: - | AF29: - | AG29: - | AH29: - | AI29: 0 | AJ29: 0 | AK29: 0 | AL29: 0 | AM29: 0 | AN29: 0 | AO29: 0 | AP29: 0 | AQ29: 0 | AS29: 0 | AT29: 0
A30: Adesão à anistia fiscal | B30: -4.1 | C30: -4.1 | D30: - | E30: - | F30: - | G30: - | H30: - | I30: - | J30: - | K30: - | L30: - | M30: - | N30: - | O30: - | P30: - | Q30: - | R30: - | S30: - | T30: - | U30: - | V30: - | W30: - | X30: - | Y30: - | Z30: - | AA30: - | AB30: - | AC30: - | AD30: - | AE30: - | AF30: - | AG30: - | AH30: - | AI30: 0 | AJ30: 0 | AK30: 0 | AL30: 0 | AM30: 0 | AN30: 0 | AO30: 0 | AP30: 0 | AQ30: 0 | AS30: 0 | AT30: 0
A31: Eventos não recorrentes | B31: 0 | C31: 0 | D31: 0 | E31: 0 | F31: 0 | G31: 0 | H31: 0 | I31: 0 | J31: 0 | K31: 0 | L31: 0 | M31: 0 | N31: 0 | O31: 0 | P31: 0 | Q31: 0 | R31: 0 | S31: 0 | T31: 0 | U31: 0 | V31: 0 | W31: 0 | X31: 0 | Y31: 0 | Z31: 0 | AA31: 0 | AB31: 0 | AC31: 0 | AD31: 0 | AE31: 0 | AF31: 0 | AG31: 0 | AH31: -4.4 | AI31: 0 | AJ31: 0 | AK31: 0 | AL31: -14.3 | AM31: 0 | AN31: 0 | AO31: 0 | AP31: 0 | AQ31: 0 | AS31: -39.671 | AT31: -1.621
A32: Lucro Líquido Contábil | B32: 34.7 | C32: 42.8 | D32: 44.4 | E32: 15.9 | F32: 24 | G32: 35.4 | H32: 38.1 | I32: 44.5 | J32: 46.9 | K32: 50.2 | L32: 51.1 | M32: 54 | N32: 56.7 | O32: 60.2 | P32: 58.5 | Q32: 60.6 | R32: 56.9 | S32: 55 | T32: 55 | U32: 59.6 | V32: 58.9 | W32: 63.5 | X32: 66.1 | Y32: 74.9 | Z32: 70.7 | AA32: 79.8 | AB32: 84.1 | AC32: 82.2 | AD32: 80.3 | AE32: 90.1 | AF32: 95.9 | AG32: 105.5 | AH32: 91149 | AI32: 104.1 | AJ32: 102.8 | AK32: 108.5 | AL32: 96.866 | AM32: 107.139 | AN32: 104.134 | AO32: 110.605 | AP32: 108.548 | AQ32: 111.653 | AR32: 116.112 | AS32: 81.773 | AT32: 119.554
A35: Receitas de Prestação de Serviços
A36: Garantias Prestadas | B36: 4.4 | C36: 5.3 | D36: 5.7 | E36: 6.6 | F36: 7.4 | G36: 9.9 | H36: 12.4 | I36: 14.1 | J36: 14.9 | K36: 16.5 | L36: 17.4 | M36: 19.6 | N36: 20.8 | O36: 22.6 | P36: 23.5 | Q36: 24.2 | R36: 24.2 | S36: 26 | T36: 27.4 | U36: 26.6 | V36: 27.2 | W36: 30.2 | X36: 31.2 | Y36: 29.9 | Z36: 29.9 | AA36: 32.8 | AB36: 33.9 | AC36: 34.3 | AD36: 35.2 | AE36: 37.2 | AF36: 36.6 | AG36: 58.2 | AH36: 45.3 | AI36: 48.5 | AJ36: 52.2 | AK36: 53 | AL36: 54 | AM36: 54.085 | AN36: 51.791 | AO36: 52.515 | AP36: 54.776 | AQ36: 56.431 | AR36: 57.091 | AS36: 55.019 | AT36: 50.299
A37: Fees Mercado de Capitais e M&A | B37: - | C37: 1.3 | D37: 2.3 | E37: 0.8 | F37: 0.3 | G37: 0.5 | H37: 0 | I37: 0.6 | J37: 2.4 | K37: 1.6 | L37: 0.5 | M37: 8.2 | N37: 2 | O37: 2.8 | P37: 2.4 | Q37: 1.9 | R37: 1.9 | S37: 2 | T37: 3.1 | U37: 7.9 | V37: 1 | W37: 6.4 | X37: 0.8 | Y37: 6.3 | Z37: 4.9 | AA37: 3.3 | AB37: 4.8 | AC37: 7.2 | AD37: 4.5 | AE37: 7.1 | AF37: 1.2 | AG37: 8.5 | AH37: 2.4 | AI37: 6.7 | AJ37: 5.9 | AK37: 7 | AL37: 15.7 | AM37: 11.425 | AN37: 8.992 | AO37: 20.744 | AP37: 13.467 | AQ37: 21.353 | AR37: 27.505 | AS37: 27.828 | AT37: 15.999
A38: Tarifas | B38: 4.7 | C38: 4.2 | D38: 4.1 | E38: 3.8 | F38: 2.6 | G38: 3.1 | H38: 3.7 | I38: 5.1 | J38: 7.1 | K38: 8.1 | L38: 4.8 | M38: 6.9 | N38: 6.8 | O38: 5.4 | P38: 4.2 | Q38: 3.3 | R38: 3.3 | S38: 4.1 | T38: 4.6 | U38: 6.3 | V38: 4.8 | W38: 7.9 | X38: 5.2 | Y38: 6.2 | Z38: 6.1 | AA38: 5.8 | AB38: 5.9 | AC38: 8 | AD38: 5.7 | AE38: 6.2 | AF38: 7.3 | AG38: 8.1 | AH38: 8.4 | AI38: 9.6 | AJ38: 7.9 | AK38: 9.5 | AL38: 6.7 | AM38: 10.185 | AN38: 10.398 | AO38: 10.438 | AP38: 9.377 | AQ38: 13.683 | AR38: 11.402 | AS38: 11.524 | AT38: 11.423
A39: Total | B39: 9.1 | C39: 10.8 | D39: 12.1 | E39: 11.2 | F39: 10.3 | G39: 13.4 | H39: 16.1 | I39: 19.8 | J39: 24.4 | K39: 26.2 | L39: 22.7 | M39: 34.7 | N39: 29.6 | O39: 30.9 | P39: 30 | Q39: 29.3 | R39: 29.3 | S39: 32.1 | T39: 35.2 | U39: 35.2 | V39: 33 | W39: 44.5 | X39: 37.2 | Y39: 42.3 | Z39: 41 | AA39: 41.9 | AB39: 44.7 | AC39: 49.6 | AD39: 45.3 | AE39: 50.5 | AF39: 45.1 | AG39: 41.6 | AH39: 56.1 | AI39: 64.9 | AJ39: 66 | AK39: 69.5 | AL39: 76.3 | AM39: 75.695 | AN39: 71.181 | AO39: 83.697 | AP39: 77.62 | AQ39: 91.467 | AR39: 95.998 | AS39: 94.371 | AT39: 77.721
A42: Despesas
A43: Pessoal | B43: -14.2 | C43: -16 | D43: -17.6 | E43: -20.7 | F43: -20.6 | G43: -17.5 | H43: -19.5 | I43: -20.3 | J43: -20.9 | K43: -22.4 | L43: -23.1 | M43: -25.7 | N43: -26.2 | O43: -27.4 | P43: -28.2 | Q43: -28.2 | R43: -31.1 | S43: -32.2 | T43: -31 | U43: -36.3 | V43: -32.7 | W43: -34.7 | X43: -34.7 | Y43: -38.9 | Z43: -35.8 | AA43: -37.4 | AB43: -37.4 | AC43: -41.4 | AD43: -40.3 | AE43: -42.4 | AF43: -46.7 | AG43: -45.5 | AH43: -42.94 | AI43: -42.49 | AJ43: -42.76 | AK43: -45.47 | AL43: -43.076 | AM43: -47.42 | AN43: -44.94 | AO43: -49.44 | AP43: -47.756 | AQ43: -47.741 | AR43: -48.606 | AS43: -51.232 | AT43: -49.175
A44: Outras Despesas Administrativas | B44: -9.7 | C44: -10.9 | D44: -12.3 | E44: -14.5 | F44: -12.3 | G44: -13.2 | H44: -14.1 | I44: -15.7 | J44: -14.3 | K44: -12.7 | L44: -13.7 | M44: -16.1 | N44: -15.4 | O44: -16.9 | P44: -16.6 | Q44: -16.6 | R44: -15.7 | S44: -19.6 | T44: -17.7 | U44: -18.5 | V44: -17.6 | W44: -18.5 | X44: -18.7 | Y44: -23.6 | Z44: -20.6 | AA44: -19.6 | AB44: -22.2 | AC44: -24.2 | AD44: -23.2 | AE44: -22.6 | AF44: -23.2 | AG44: -24.6 | AH44: -23.8 | AI44: -25.4 | AJ44: -25.9 | AK44: -28.672 | AL44: -25.877 | AM44: -26.452 | AN44: -25.691 | AO44: -27.404 | AP44: -26.065 | AQ44: -29.185 | AR44: -28.7531 | AS44: -28.905 | AT44: -32
A45: Participação nos Lucros | B45: -14.5 | C45: -11.9 | D45: -14 | E45: -4.8 | F45: -7.5 | G45: -9.2 | H45: -11.8 | I45: -13.5 | J45: -15.4 | K45: -15.4 | L45: -15 | M45: -19.2 | N45: -17.6 | O45: -16.8 | P45: -17 | Q45: -17 | R45: -10 | S45: -13.1 | T45: -14 | U45: -15.3 | V45: -18.6 | W45: -20.6 | X45: -19.5 | Y45: -23.3 | Z45: -19.6 | AA45: -23.8 | AB45: -23.1 | AC45: -24.5 | AD45: -23 | AE45: -25.6 | AF45: -23.6 | AG45: -29 | AH45: -27.86 | AI45: -28.31 | AJ45: -27.54 | AK45: -34.03 | AL45: -35.411 | AM45: -33.264 | AN45: -36.35 | AO45: -36.893 | AP45: -40.092 | AQ45: -39.221 | AR45: -39.233 | AS45: -40.061 | AT45: -39.192
A46: Despesas Tributárias | B46: -0.8 | C46: -0.7 | D46: -0.8 | E46: -0.6 | F46: -0.5 | G46: -0.5 | H46: -0.6 | I46: -3.5 | J46: -8.3 | K46: -8.3 | L46: -8.7 | M46: -8.9 | N46: -10 | O46: -10.5 | P46: -8.9 | Q46: -1.1 | R46: -10.1 | S46: -8.3 | T46: -10 | U46: -10.1 | V46: -10.1 | W46: -8.5 | X46: -10.5 | Y46: -12.3 | Z46: -11.3 | AA46: -11.1 | AB46: -8.6 | AC46: -9 | AD46: -15.9 | AE46: -11 | AF46: -20.4 | AG46: -10.2 | AH46: 1.8 | AI46: -4.275 | AJ46: -13 | AK46: -22.628 | AL46: -15.2 | AM46: -17.73141929 | AN46: -16.67986947 | AO46: -20.72571882 | AP46: -13.88992041 | AQ46: -28.904 | AR46: -20.13 | AS46: -15.445 | AT46: -11.473
A47: Total | B47: -39.2 | C47: -39.5 | D47: -44.7 | E47: -40.7 | F47: -41 | G47: -40.4 | H47: -46 | I47: -53 | J47: -59 | K47: -58.8 | L47: -60.5 | M47: -69.9 | N47: -69.1 | O47: -71.6 | P47: -70.7 | Q47: -62.9 | R47: -66.9 | S47: -73.3 | T47: -72.7 | U47: -80.1 | V47: -78.9 | W47: -82.3 | X47: -83.5 | Y47: -98 | Z47: -87.3 | AA47: -91.9 | AB47: -91.4 | AC47: -99.1 | AD47: -102.4 | AE47: -101.7 | AF47: -113.9 | AG47: -109.3 | AH47: -92.8 | AI47: -100.475 | AJ47: -109.2 | AK47: -130.8 | AL47: -119.564 | AM47: -124.8674193 | AN47: -123.6608695 | AO47: -134.4627188 | AP47: -127.8029204 | AQ47: -145.051 | AR47: =SUM(AR43:AR46) -> -136.7221 | AS47: =SUM(AS43:AS46) -> -135.643 | AT47: =SUM(AT43:AT46) -> -131.84
A50: Resultado Operacional Gerencial
A51: Margem Financeira Gerencial antes da PDD | B51: 86.9 | C51: 96.2 | D51: 104.5 | E51: 103 | F51: 88.9 | G51: 94.5 | H51: 93.8 | I51: 98.7 | J51: 108.5 | K51: 113.3 | L51: 116.9 | M51: 126.4 | N51: 135.4 | O51: 133.5 | P51: 146.8 | Q51: 143.8 | R51: 140.9 | S51: 144.4 | T51: 147.6 | U51: 148.1 | V51: 147.1 | W51: 145.3 | X51: 160.4 | Y51: 189.3 | Z51: 168.5 | AA51: 177.7 | AB51: 188.7 | AC51: 213.3 | AD51: 218.9 | AE51: 225.8 | AF51: 259.4 | AG51: 273 | AH51: 226.1 | AI51: 250.8 | AJ51: 256.3 | AK51: 283.3 | AL51: 265.8 | AM51: 275.824 | AN51: 260.15 | AO51: 276.5575252 | AP51: 233.5194492 | AQ51: 257.131 | AR51: 239.256 | AS51: 245.646 | AT51: 240.727
A52: Provisão para Devedores Duvidosos (PDD) | B52: -7.9 | C52: -6.5 | D52: -11.3 | E52: -54.1 | F52: -25.6 | G52: -14.9 | H52: -8.6 | I52: -4.1 | J52: -13.8 | K52: -9 | L52: -8.9 | M52: -12.7 | N52: -12.3 | O52: -5.7 | P52: -21.9 | Q52: -13.8 | R52: -23.7 | S52: -28.7 | T52: -32.8 | U52: -25.6 | V52: -16.9 | W52: -31.3 | X52: -18.6 | Y52: -26 | Z52: -25.5 | AA52: -14.9 | AB52: -16.8 | AC52: -43.6 | AD52: -43.3 | AE52: -36.4 | AF52: -90.4 | AG52: -48.6 | AH52: -48.9 | AI52: -54.1 | AJ52: -50.2 | AK52: -55.3 | AL52: -57.9 | AM52: -56.614 | AN52: -54.866 | AO52: -50.79521386 | AP52: -22.463 | AQ52: -33.128 | AR52: -33.129 | AS52: -29.491 | AT52: -29.491
A53: Margem Financeira Gerencial após PDD | B53: 78.9 | C53: 89.7 | D53: 93.2 | E53: 49 | F53: 63.3 | G53: 79.7 | H53: 85.2 | I53: 94.6 | J53: 94.7 | K53: 104.3 | L53: 108 | M53: 113.7 | N53: 123 | O53: 127.8 | P53: 124.9 | Q53: 130 | R53: 117.2 | S53: 115.7 | T53: 114.7 | U53: 122.5 | V53: 130.3 | W53: 113.9 | X53: 141.8 | Y53: 163.3 | Z53: 143 | AA53: 162.8 | AB53: 171.9 | AC53: 169.7 | AD53: 175.6 | AE53: 189.4 | AF53: 168.9 | AG53: 224.4 | AH53: 177.2 | AI53: 196.7 | AJ53: 206.1 | AK53: 227.9 | AL53: 207.9 | AM53: 219.21 | AN53: 205.284 | AO53: 225.7623113 | AP53: 211.0564492 | AQ53: 224.003 | AR53: 206.127 | AS53: 216.155 | AT53: 216.155
A54: Receitas de Prestação de Serviços | B54: 9.1 | C54: 10.8 | D54: 12.1 | E54: 11.2 | F54: 10.3 | G54: 13.4 | H54: 16.1 | I54: 19.8 | J54: 24.4 | K54: 26.2 | L54: 22.8 | M54: 34.7 | N54: 29.6 | O54: 30.9 | P54: 30 | Q54: 34.8 | R54: 29.3 | S54: 32.1 | T54: 35.2 | U54: 40.8 | V54: 33 | W54: 44.5 | X54: 37.2 | Y54: 42.3 | Z54: 41 | AA54: 41.9 | AB54: 44.7 | AC54: 49.6 | AD54: 41 | AE54: 50.5 | AF54: 45.1 | AG54: 58.2 | AH54: 56.1 | AI54: 64.9 | AJ54: 66 | AK54: 69.5 | AL54: 76.3 | AM54: 75.695 | AN54: 71.181 | AO54: 83.697 | AP54: 77.62 | AQ54: 91.467 | AR54: 95.998 | AS54: 94.371 | AT54: 77.721
A55: Despesas Pessoal & Outras Administrativas | B55: -23.8 | C55: -26.8 | D55: -29.7 | E55: -34.6 | F55: -32.9 | G55: -30.5 | H55: -33.2 | I55: -35.8 | J55: -34.8 | K55: -35.1 | L55: -36.8 | M55: -50.7 | N55: -51.5 | O55: -44.3 | P55: -44.8 | Q55: -48.3 | R55: -46.8 | S55: -51.8 | T55: -48.7 | U55: -54.7 | V55: -50.3 | W55: -53.1 | X55: -53.4 | Y55: -62.5 | Z55: -56.4 | AA55: -57 | AB55: -59.7 | AC55: -65.6 | AD55: -63.5 | AE55: -65.1 | AF55: -69.9 | AG55: -70.1 | AH55: -66.74 | AI55: -67.89 | AJ55: -68.66 | AK55: -74.142 | AL55: -68.953 | AM55: -73.872 | AN55: -70.631 | AO55: -76.844 | AP55: -73.821 | AQ55: -76.926 | AR55: -77.3591 | AS55: -80.137 | AT55: -81.175
A56: Despesas Tributárias | B56: -0.8 | C56: -0.7 | D56: -0.8 | E56: -0.6 | F56: -0.5 | G56: -0.5 | H56: -0.6 | I56: -3.5 | J56: -8.3 | K56: -8.3 | L56: -8.7 | M56: -8.9 | N56: -10 | O56: -10.5 | P56: -8.9 | Q56: -1.1 | R56: -10.1 | S56: -8.3 | T56: -10 | U56: -10.1 | V56: -10.1 | W56: -8.5 | X56: -10.5 | Y56: -12.3 | Z56: -11.3 | AA56: -11.1 | AB56: -8.5 | AC56: -9 | AD56: -15.9 | AE56: -17.2 | AF56: -22.2 | AG56: -10.2 | AH56: 1.8 | AI56: -4.275 | AJ56: -13 | AK56: -22.628 | AL56: -15.2 | AM56: -17.73141929 | AN56: -16.67986947 | AO56: -20.72571882 | AP56: -13.88992041 | AQ56: -29.679 | AR56: -20.6449 | AS56: -15.445 | AT56: -11.473
A57: Outras Receitas (Despesas) Operacionais Ajustada | B57: -5 | C57: -5.3 | D57: -5.6 | E57: -6.6 | F57: -3.9 | G57: -6.8 | H57: -5.3 | I57: -24 | J57: -3.6 | K57: -7.5 | L57: -6.3 | M57: -0.8 | N57: -2.2 | O57: 0.4 | P57: -2 | Q57: 3.5 | R57: 2.5 | S57: 4 | T57: 0.1 | U57: -0.6 | V57: -1.7 | W57: 12.6 | X57: -1.3 | Y57: -10.3 | Z57: 4.4 | AA57: 1.7 | AB57: -10.1 | AC57: -6.7 | AD57: -2.9 | AE57: -6.2 | AF57: -6.2 | AG57: -16.5 | AH57: 7.3 | AI57: -6.5 | AJ57: -9.7 | AK57: -5.6 | AL57: 5.629 | AM57: -1.853 | AN57: 2.924 | AO57: -3.949 | AP57: -0.567 | AQ57: -0.775 | AR57: -0.5149 | AS57: 2.424 | AT57: 4.713
A58: Resultado não Operacional Gerencial | B58: - | C58: 0 | D58: 1.2 | E58: 0 | F58: -1.7 | G58: -1 | H58: -0.2 | I58: -0.3 | J58: -0.3 | K58: -1.9 | L58: 0.3 | M58: -0.5 | N58: -0.4 | O58: -4 | P58: 2.7 | Q58: -4.2 | R58: -0.9 | S58: -3.8 | T58: -1.4 | U58: -0.4 | V58: 0.1 | W58: -0.6 | X58: -1.1 | Y58: -0.1 | Z58: -0.3 | AA58: -2 | AB58: 0.5 | AC58: -0.5 | AD58: -0.8 | AE58: -2.8 | AF58: -2.9 | AG58: 0.2 | AH58: -7.9 | AI58: -0.3 | AJ58: -1.5 | AK58: -2.5 | AL58: -7.694 | AM58: -10.493 | AN58: -10.582 | AO58: -8.127 | AP58: -9.935 | AQ58: -10.349 | AR58: -0.057 | AS58: -1.07 | AT58: -0.715
A59: Resultado Operacional | B59: =SUM(B51,B52,B54,B55,B56,B57,B58) -> 58.5 | C59: 67.7 | D59: 70.4 | E59: 18.3 | F59: 34.6 | G59: 54.2 | H59: 62 | I59: 50.8 | J59: 72.1 | K59: 77.7 | L59: 79.3 | M59: 87.5 | N59: 88.6 | O59: 100.3 | P59: 101.9 | Q59: 114.7 | R59: 91.2 | S59: 87.9 | T59: 90 | U59: 97.5 | V59: 101.2 | W59: 108.9 | X59: 112.7 | Y59: 120.4 | Z59: 120.4 | AA59: 136.3 | AB59: 138.8 | AC59: 137.5 | AD59: 133.5 | AE59: 148.6 | AF59: 112.9 | AG59: 186 | AH59: 167.76 | AI59: 182.635 | AJ59: 179.24 | AK59: 192.63 | AL59: 197.982 | AM59: 190.9555807 | AN59: 181.4961305 | AO59: 199.8135925 | AP59: 190.4635288 | AQ59: 197.741 | AR59: 203.5491 | AS59: 216.298 | AT59: =SUM(AT51,AT52,AT54,AT55,AT56,AT57,AT58) -> 200.307
A61: A partir do primeiro trimestre de 2018, foram feitas as seguintes reclassificações: (i) a porção das despesas de INSS referente à remuneração variável passou da linha “Despesa de Pessoal” para “Participação nos Lucros (PLR)”, onde a remuneração variável é contabilizada; e (ii) a porção das despesas que geram incentivos fiscais (Lei Rouanet, Lei do Incentivo ao Esporte e FUMCAD) passou da linha “Despesas Administrativas” para “Imposto de Renda e Contribuição Social”. Essa alteração foi aplicada para os dados desde o 1T16.

Sheet DRE Gerencial (Anual) (hidden)
A2: Banco ABC Brasil S.A.
A4: Planilha de Séries Históricas
B6: Índice | L6: Índice
A7: DRE Gerencial
A8: (R$ milhões)
B9: 2008 | C9: 2009 | D9: 2010 | E9: 2011 | F9: 2012 | G9: 2013 | H9: 2014 | I9: 2015 | J9: 2016 | K9: 2017 | L9: 2018
A10: DEMONSTRAÇÃO DO RESULTADO GERENCIAL
A11: Margem Financeira Publicada antes da PDD | B11: 351.8 | C11: 410.3 | D11: 466.8 | E11: 533.2 | F11: 516.6 | G11: 519.1 | H11: 564.8 | I11: 307.4 | J11: 1237.9 | K11: - | L11: -
A12: Efeito do hedge de investimentos no exterior | B12: 30.3 | C12: -26 | D12: -5.1 | E12: 18.7 | F12: 38.2 | G12: 66.8 | H12: 82.2 | I12: 326.9 | J12: -189.3 | K12: - | L12: -
A13: Efeito fiscal do hedge de investimentos no exterior + outros | B13: 20.5 | C13: -8.4 | D13: 3.4 | E13: 7.6 | F13: 25.2 | G13: 56.3 | H13: 101.2 | I13: 344.1 | J13: -31.9 | K13: - | L13: -
A14: Margem Financeira Gerencial antes PDD | B14: 390.6 | C14: 376 | D14: 465.1 | E14: 559.5 | F14: 580.1 | G14: 642.1 | H14: 748.2 | I14: 978.5 | J14: 1016.6 | K14: 1069.206525 | L14: 977.861
A15: Margem Financeira com Clientes | B15: 356.9 | C15: 348.3 | D15: 421.5 | E15: 508.8 | F15: 494.2 | G15: 555.6 | H15: 639.7 | I15: 782.7 | J15: 847.6 | K15: 843.4396719 | L15: 768.677
A16: Margem Financeira com Mercado | B16: 29 | C16: 27.7 | D16: 43.6 | E16: 50.7 | F16: 85.9 | G16: 86.6 | H16: 108.5 | I16: 195.8 | J16: 169.1 | K16: 225.7668532 | L16: 209.184
A17: Provisão para Devedores Duvidosos (PDD) | B17: -79.8 | C17: -53.1 | D17: -44.4 | E17: -53.8 | F17: -110.8 | G17: -92.8 | H17: -100.8 | I17: -218.7 | J17: -208.6 | K17: -220.2232139 | L17: -118.211
A18: Margem Gerencial após PDD | B18: 310.8 | C18: 322.8 | D18: 420.6 | E18: 505.7 | F18: 469.2 | G18: 549.3 | H18: 647.4 | I18: 759.8 | J18: 808 | K18: 848.9833113 | L18: 859.65
A19: Receitas de Prestação de Serviços | B19: 43.1 | C19: 59.7 | D19: 108.1 | E19: 125.4 | F19: 137.4 | G19: 156.9 | H19: 177 | I19: 199.1 | J19: 256.6 | K19: 306.873 | L19: 361.072
A20: Despesas | B20: -114.9 | C20: -132.5 | D20: -183.9 | E20: -188.9 | F20: -202.1 | G20: -219.3 | H20: -238.7 | I20: -268.5 | J20: -288.467 | K20: -308.736 | L20: -308.244
A21: Despesas de Pessoal & Outras Administrativas (publicada) | B21: -127.8 | C21: -133.1 | D21: -183.9 | E21: -188.9 | F21: -202.1 | G21: -219.3 | H21: -238.7 | I21: -268.5 | J21: -288.467 | K21: -308.736 | L21: -308.244
A22: Cessão do consignado | B22: 11.9 | C22: - | D22: - | E22: - | F22: - | G22: - | H22: - | I22: - | J22: 0 | K22: 0 | L22: 0
A23: Efeito de Contribuições Incentivadas | B23: 1.1 | C23: 0.7 | D23: - | E23: - | F23: - | G23: - | H23: - | I23: - | J23: 0 | K23: 0 | L23: 0
A24: Despesas Tributárias | B24: -2.9 | C24: -5.2 | D24: -34.2 | E24: -30.5 | F24: -30.5 | G24: -41.4 | H24: -40.1 | I24: -57.5 | J24: -37.3 | K24: -69.51400759 | L24: -78.37
A25: Outras Receitas (Despesas) Operacionais Ajustada | B25: -22.5 | C25: -40 | D25: 7 | E25: -0.4 | F25: 6 | G25: -0.7 | H25: -10.7 | I25: -29 | J25: -14.5 | K25: 13.647 | L25: -3.358
A26: Outras Receitas (Despesas) Operacionais Publicada | B26: 7.8 | C26: -46.6 | D26: 1.9 | E26: 18.3 | F26: 44.3 | G26: 66.1 | H26: 71.6 | I26: 297.9 | J26: -203.8 | K26: 13.647 | L26: -3.358
A27: Efeito do hedge de investimentos no exterior | B27: -30.3 | C27: 26 | D27: 5.1 | E27: -18.7 | F27: -38.2 | G27: -66.8 | H27: -82.2 | I27: -326.9 | J27: 189.3 | K27: 0 | L27: 0
A28: Efeito Anistia/Cetip | B28: - | C28: - | D28: - | K28: 0 | L28: 0
A29: Resultado não Operacional Gerencial | B29: 1.2 | C29: -3.3 | D29: -2.4 | E29: -5.9 | F29: -6.6 | G29: -1.8 | H29: -2.3 | I29: -6.2 | J29: -12.2 | K29: -36.896 | L29: -21.411
A30: Res. antes da Tributação sobre o Lucro e Participações | B30: 217.8 | C30: 206.7 | D30: 349.4 | E30: 407 | F30: 365.5 | G30: 443.1 | H30: 532.7 | I30: 597.6 | J30: 712.1018716 | K30: 754.4543037 | L30: 809.339
A31: Imposto de Renda e Contribuição Social Ajustado | B31: -13.4 | C31: -21.2 | D31: -78.7 | E31: -103.1 | F31: -86.4 | G31: -97.6 | H31: -131.1 | I31: -125.5 | J31: -193.7128716 | K31: -196.5113037 | L31: -192.975
A32: Imposto de Renda e Contribuição Social Publicado | B32: -1.1 | C32: -0.7 | D32: -3.4 | E32: -26.3 | F32: -27.5 | G32: -41.3 | H32: -29.9 | I32: 199.1 | J32: -200 | K32: -17.97 | L32: 0
A33: Efeito fiscal do hedge de investimentos no exterior + outros | B33: -20.5 | C33: 8.4 | D33: - | E33: -7.6 | F33: -25.2 | G33: -56.3 | H33: -101.2 | I33: -324.6 | J33: 6.5 | K33: -176.6983037 | L33: 0
A34: Efeito Fiscal da Anistia/Cetip | B34: - | C34: -9.2 | D34: - | E34: - | F34: - | G34: - | H34: - | I34: - | J34: 0 | K34: 0 | L34: 0
A35: Participação nos Lucros | B35: -45.1 | C35: -42.1 | D35: -65.1 | E35: -69.4 | F35: -52.5 | G35: -82.1 | H35: -91 | I35: -101.2 | J35: -107.4 | K35: -124.889 | L35: -158.607
A36: Lucro Líquido Recorrente | B36: 137.8 | C36: 151.2 | D36: 202.2 | E36: 236 | F36: 226.6 | G36: 263.4 | H36: 310.6 | I36: 370.9 | J36: 411 | K36: 433.044 | L36: 457.757
A37: Efeitos líquidos de Imposto de Renda | B37: - | C37: - | D37: - | E37: - | F37: - | G37: - | H37: - | I37: - | J37: 0 | K37: 0
A38: Venda de participação na CETIP | B38: - | C38: - | D38: - | E38: - | F38: - | G38: - | H38: - | I38: - | J38: 0 | K38: 0
A39: Adesão à anistia fiscal | B39: - | C39: - | D39: - | E39: - | F39: - | G39: - | H39: - | I39: - | J39: 0 | K39: 0
A40: Eventos não recorrentes | B40: 0 | C40: 0 | D40: 0 | E40: 0 | F40: 0 | G40: 0 | H40: 0 | I40: 0 | J40: -4.4 | K40: -14.3 | L40: -39.671
A41: Lucro Líquido Contábil | B41: 137.8 | C41: 142 | D41: 202.2 | E41: 236 | F41: 226.6 | G41: 263.4 | H41: 310.6 | I41: 371.8 | J41: 406.6 | K41: 418.744 | L41: 418.086
A44: Receitas de Prestação de Serviços
A45: Garantias Prestadas | B45: 22 | C45: 43.7 | D45: 69.8 | E45: 91 | F45: 104.2 | G45: 118.5 | H45: 130.9 | I45: 199.1 | J45: 199 | K45: 212.354 | L45: 224.932
A46: Fees Mercado de Capitais e M&A | B46: 4.4 | C46: 1.5 | D46: 12.7 | E46: 9.1 | F46: 15 | G46: 14.5 | H46: 20.3 | I46: 21.3 | J46: 22.1 | K46: 56.82 | L46: 90.153
A47: Tarifas | B47: 16.7 | C47: 14.5 | D47: 25.6 | E47: 19.8 | F47: 18.3 | G47: 24 | H47: 25.9 | I47: 27.3 | J47: 35.4 | K47: 37.732 | L47: 45.987
A48: Total | B48: 43.1 | C48: 59.7 | D48: 108.1 | E48: 119.9 | F48: 137.4 | G48: 156.9 | H48: 177 | I48: 150.5 | J48: 256.6 | K48: 306.906 | L48: 361.072
A51: Despesas
A52: Pessoal | B52: -68.5 | C52: -77.9 | D52: -92.1 | E52: -109.9 | F52: -130.6 | G52: -140.9 | H52: -152 | I52: -174.8 | J52: -191.9 | K52: -201.867 | L52: -195.335
A53: Outras Despesas Administrativas | B53: -47.4 | C53: -55.2 | D53: -57.7 | E53: -65.5 | F53: -71.5 | G53: -78.4 | H53: -86.7 | I53: -93.7 | J53: -104.6 | K53: -106.76 | L53: -112.909
A54: Participação nos Lucros | B54: -45.1 | C54: -42.1 | D54: -65.1 | E54: -68.3 | F54: -52.5 | G54: -82.1 | H54: -91 | I54: -101.2 | J54: -107.4 | K54: -124.899 | L54: -158.607
A55: Despesas Tributárias | B55: -2.9 | C55: -5.2 | D55: -34.2 | E55: -30.5 | F55: -38.5 | G55: -41.4 | H55: -40.1 | I55: -57.5 | J55: -37.3 | K55: -69.55900759 | L55: -78.37
A56: Total | B56: -163.9 | C56: -180.4 | D56: -249.1 | E56: -274.2 | F56: -293 | G56: -342.7 | H56: -369.8 | I56: -427.2 | J56: -441.2 | K56: -503.0850076 | L56: =SUM(L52:L55) -> -545.221
A59: Resultado Operacional Gerencial
A60: Margem Financeira Gerencial antes da PDD | B60: 390.6 | C60: 376 | D60: 465.1 | E60: 559.5 | F60: 580.1 | G60: 642.1 | H60: 748.2 | I60: 978.5 | J60: 1016.6 | K60: 1069.206525 | L60: 977.861
A61: Provisão para Devedores Duvidosos (PDD) | B61: -79.8 | C61: -53.1 | D61: -44.4 | E61: -53.8 | F61: -110.8 | G61: -92.8 | H61: -100.8 | I61: -218.7 | J61: -208.6 | K61: -220.2232139 | L61: -118.211
A62: Margem Financeira Gerencial após PDD | B62: 310.8 | C62: 322.8 | D62: 420.6 | E62: 505.7 | F62: 469.2 | G62: 549.3 | H62: 647.4 | I62: 759.8 | J62: 808 | K62: 848.9833113 | L62: 859.65
A63: Receitas de Prestação de Serviços | B63: 43.1 | C63: 59.7 | D63: 108.1 | E63: 125.4 | F63: 137.4 | G63: 156.9 | H63: 177 | I63: 199.1 | J63: 256.6 | K63: 306.906 | L63: 361.072
A64: Despesas Pessoal & Outras Administrativas | B64: -114.9 | C64: -132.5 | D64: -183.9 | E64: -188.9 | F64: -202.1 | G64: -219.3 | H64: -238.7 | I64: -268.5 | J64: -296.5 | K64: -308.627 | L64: -308.244
A65: Despesas Tributárias & Outras Operacionais | B65: -2.9 | C65: -5.2 | D65: -34.2 | E65: -30.5 | F65: -30.5 | G65: -41.4 | H65: -40.1 | I65: -57.5 | J65: -37.3 | K65: -69.55900759 | L65: -78.37
A66: Outras Receitas (Despesas) Operacionais Ajustada | B66: -22.5 | C66: -40 | D66: 7 | E66: -0.4 | F66: 6 | G66: -0.7 | H66: -10.7 | I66: -29 | J66: -14.5 | K66: 13.647 | L66: -3.358
A67: Resultado não Operacional Gerencial | B67: 1.2 | C67: -3.3 | D67: -2.4 | E67: -5.9 | F67: -6.6 | G67: -1.8 | H67: -2.3 | I67: -6.2 | J67: -12.2 | K67: -36.896 | L67: -21.411
A68: Resultado Operacional | B68: 217.8 | C68: 206.7 | D68: 349.4 | E68: 407 | F68: 365.5 | G68: 443.1 | H68: 532.7 | I68: 597.6 | J68: 704.1 | K68: 754.4543037 | L68: =SUM(L60:L61,L63:L65,L65) -> 755.738

Sheet Captação
A2: Banco Mercantil do Brasil S.A.
A4: Planilha de Séries Históricas
B6: Índice | Q6: Índice
A7: Captação (Consolidado)
A8: (R$ Milhões)
B9: 2020-03-01 | C9: =EDATE(B9,3) -> 2020-06-01 | D9: =EDATE(C9,3) -> 2020-09-01 | E9: 2020-12-01 | F9: 2021-03-01 | G9: 2021-06-01 | H9: 2021-09-01 | I9: 2021-12-01 | J9: 2022-03-01 | K9: 2022-06-01 | L9: 2022-09-01 | M9: 2022-12-01 | N9: 2023-03-01 | O9: 2023-06-01 | P9: 2023-09-01 | Q9: 2023-12-01 | R9: 2024-03-01 | S9: 2024-06-01 | T9: 2024-09-01 | U9: 2024-12-01 | V9: 2025-03-01 | W9: 2025-06-01 | X9: 2025-09-01 | Y9: 2025-12-01
A10: CAPTAÇÃO
A11: Captações (Depósitos, Cessões de Crédito, Cap. Externas, LCA, LF, LFS, Mercado Aberto)
A12: Depósitos
A13: - Depósito à Vista | B13: 322715 | C13: 399125 | D13: 389805 | E13: 443055 | F13: 456121 | G13: 494062 | H13: 444334 | I13: 480750 | J13: 497008 | K13: 513369 | L13: 541721 | M13: 542847
A14: - Poupança | B14: 201079 | C14: 222429 | D14: 233045 | E14: 232987 | F14: 231896 | G14: 238444 | H14: 226583 | I14: 226084 | J14: 218273 | K14: 220749 | L14: 202442 | M14: 196467
A15: - Depósito a prazo | B15: =1337291+4716523 -> 6053814 | C15: 6670779 | D15: 6962277 | E15: 7332208 | F15: 7172921 | G15: 7751725 | H15: 8165726 | I15: 8285956 | J15: 8620937 | K15: 9344320 | L15: 9447053 | M15: 9946592
A16: - CDB | B16: 5781631 | C16: 6299816 | D16: 6377163 | E16: 6592087 | F16: 6517439 | G16: 6699458 | H16: 6918139 | I16: 7121824 | J16: 7452543 | K16: 8194160 | L16: 8454043 | M16: 8923646
A17: - DPGE I e II | B17: =260979+10002 -> 270981 | C17: =246873+122876 -> 369749 | D17: =48265+535623 -> 583888 | E17: 738884 | F17: 654866 | G17: 1051642 | H17: 1246953 | I17: 1163488 | J17: 1167739 | K17: 1149492 | L17: 992328 | M17: 1022251
A18: - DEPOSITOS JUDICIAIS COM REMUNERACAO | B18: 1202 | C18: 1214 | D18: 1226 | E18: 1237 | F18: 616 | G18: 625 | H18: 634 | I18: 644 | J18: 655 | K18: 668 | L18: 682 | M18: 695
A19: - CDB Subordinado | B19: 0 | C19: 0 | D19: 0 | E19: 0 | F19: 0 | G19: 0 | H19: 0 | I19: 0 | J19: 0 | K19: 0 | L19: 0 | M19: 0
A20: - Depósito Interfinanceiro | B20: 96853 | C20: 116902 | D20: 26474 | E20: 26753 | F20: 67840 | G20: 198628 | H20: 229842 | I20: 235048 | J20: 188481 | K20: 195074 | L20: 139047 | M20: 148436
A21: - Outros Depósitos | B21: 0 | C21: 0 | D21: 0 | E21: 0 | F21: 5083 | G21: 5367 | H21: 3131 | I21: 3176 | J21: 2892 | K21: 1007 | L21: 2377 | M21: 7470
A22: Cessões de Crédito
A23: - Cessão c/ coobrigação antes da 3.533 | B23: 0 | C23: 0 | D23: 0 | E23: 0 | F23: 0 | G23: 0 | H23: 0 | I23: 0 | J23: 0 | K23: 0 | L23: 0 | M23: 0
A24: - Cessão c/ coobrigação após à 3.533 | B24: 19434 | C24: 14128 | D24: 9091 | E24: 0 | F24: 0 | G24: 0 | H24: 0 | I24: 226402 | J24: 494650 | K24: 895902 | L24: 822843 | M24: 752950
A25: - FIDC após à 3.533 | B25: 0 | C25: 0 | D25: 0 | E25: 0 | F25: 0 | G25: 0 | H25: 0 | I25: 0 | J25: 0 | K25: 0 | L25: 0 | M25: 0
A26: - FIDC antes da 3.533 | B26: 0 | C26: 0 | D26: 0 | E26: 0 | F26: 0 | G26: 0 | H26: 0 | I26: 0 | J26: 0 | K26: 0 | L26: 0 | M26: 0
A27: Captação Externa
A28: - Dívida Subordinada | B28: 716527 | C28: 741010 | D28: 0 | E28: 0 | F28: 0 | G28: 0 | H28: 0 | I28: 0 | J28: 0 | K28: 0 | L28: 0 | M28: 0
A29: - Certificate of Deposit - CD (TVME) | B29: 0 | C29: 0 | D29: 0 | E29: 0 | F29: 0 | G29: 0 | H29: 0 | I29: 0 | J29: 0 | K29: 0 | L29: 0 | M29: 0
A30: - TVME
A31: LCA | B31: 134716 | C31: 87456 | D31: 76329 | E31: 84374 | F31: 75350 | G31: 58480 | H31: 66776 | I31: 75854 | J31: 75136 | K31: 55478 | L31: 53023 | M31: 46969
A32: LF | B32: 16118 | C32: 15165 | D32: 10477 | E32: 4121 | F32: 4145 | G32: 4183 | H32: 4243 | I32: 3431 | J32: 28418 | K32: 62270 | L32: 64329 | M32: 66394
A33: LFS | B33: 403856 | C33: 411858 | D33: 416881 | E33: 417256 | F33: 420406 | G33: 425760 | H33: 430548 | I33: 435283 | J33: 460769 | K33: 501733 | L33: 575359 | M33: 621938
A34: LCI | B34: 3676 | C34: 2944 | D34: 0 | E34: 0 | F34: 5487 | G34: 15197 | H34: 2708 | I34: 12744 | J34: 12550 | K34: 8646 | L34: 8930 | M34: 7147
A35: Captação no Mercado Aberto | B35: 297751 | C35: 100903 | D35: 65902 | E35: 146853 | F35: 169896 | G35: 74108 | H35: 71416 | I35: 106216 | J35: 70020 | K35: 51357 | L35: 59371 | M35: 30762
A36: Total
A38: Concentração de Maiores Depositantes
A39: Maior Depositante | B39: 115167.6117 | C39: 116092.3465 | D39: 121031.5629 | E39: 88706.36918 | F39: 86037.612 | G39: 79467.42747 | H39: 124346.0998 | I39: 148373.3112 | J39: 188131.4537 | K39: 315611.5713 | L39: 396467.4051 | M39: 415729
A40: 10 Maiores Depositantes | B40: 488004.1089 | C40: 532378.9014 | D40: 588955.2414 | E40: 559368.2995 | F40: 493001.9634 | G40: 508407.5984 | H40: 555584.507 | I40: 681170.0344 | J40: 864957.9236 | K40: 980985.1918 | L40: 1007685.716 | M40: 1209654
A41: 20 Maiores Depositantes | B41: 703739.6527 | C41: 763711.8261 | D41: 846067.2882 | E41: 836918.6412 | F41: 759942.3064 | G41: 826832.0294 | H41: 873110.7417 | I41: 1002395.321 | J41: 1202577.257 | K41: 1353508.115 | L41: 1360358.674 | M41: 1586383
A42: 50 Maiores Depositantes | B42: 1101189.465 | C42: 1192149.385 | D42: 1354650.302 | E42: 1424540.379 | F42: 1346015.634 | G42: 1525066.689 | H42: 1605320.256 | I42: 1717343.161 | J42: 1943320.589 | K42: 2202978.257 | L42: 2109676.471 | M42: 2448925
A43: 100 Maiores Depositantes | B43: 1523389.287 | C43: 1634790.347 | D43: 1868557.278 | E43: 2001169.964 | F43: 1918073.526 | G43: 2186973.17 | H43: 2322053.799 | I43: 2459462.495 | J43: 2743104.811 | K43: 3029620.108 | L43: 2878191.447 | M43: 3291629
A44: Demais Depositantes | B44: 4530424.713 | C44: 5035988.653 | D44: 5093719.722 | E44: 5331038.036 | F44: 5254847.474 | G44: 5564751.83 | H44: 5843672.201 | I44: 5826493.505 | J44: 5877832.189 | K44: 6314699.892 | L44: 6568861.553 | M44: 6654963
A45: Total Depósito a Prazo | B45: =SUM(B43:B44) -> 6053814 | C45: 6670779 | D45: 6962277 | E45: 7332208 | F45: 7172921 | G45: 7751725 | H45: =SUM(H43:H44) -> 8165726 | I45: =SUM(I43:I44) -> 8285956 | J45: =SUM(J43:J44) -> 8620937 | K45: =SUM(K43:K44) -> 9344320 | L45: =SUM(L43:L44) -> 9447053 | M45: 9946592
B46: =B15-B45 -> 0 | C46: =C15-C45 -> 0 | D46: 0 | E46: 0 | F46: 0 | G46: 0 | H46: 0 | I46: =I15-I45 -> 0 | J46: 0 | K46: 0 | L46: =L15-L45 -> 0 | M46: =M15-M45 -> 0

Sheet Gerenciamento_Capital
A2: Banco Mercantil do Brasil S.A.
A4: Planilha de Séries Históricas
B6: Índice | Q6: Índice
A7: Adequação de Capital
A8: (R$ Milhões)
B9: 2020-03-01 | C9: =EDATE(B9,3) -> 2020-06-01 | D9: =EDATE(C9,3) -> 2020-09-01 | E9: 2020-12-01 | F9: 2021-03-01 | G9: 2021-06-01 | H9: 2021-09-01 | I9: 2021-12-01 | J9: 2022-03-01 | K9: 2022-06-01 | L9: 2022-09-01 | M9: 2022-12-01 | N9: 2023-03-01 | O9: 2023-06-01 | P9: 2023-09-01 | Q9: 2023-12-01 | R9: 2024-03-01 | S9: 2024-06-01 | T9: 2024-09-01 | U9: 2024-12-01 | V9: 2025-03-01 | W9: 2025-06-01 | X9: 2025-09-01 | Y9: 2025-12-01
A10: ADEQUAÇÃO DE CAPITAL
A11: a) Patrimônio de Referência - PR (a = b + c) | B11: =B12+B17 -> 1028813.7 | C11: =C12+C17 -> 1047665 | D11: 1066869 | E11: 1034558 | F11: 1083545 | G11: 1119377 | H11: 1158437 | I11: 1064835 | J11: 1195509 | K11: 1233486 | L11: 1282124 | M11: 1359500 | N11: 0 | O11: 0 | P11: 0 | Q11: 0 | R11: 0 | S11: 0 | T11: 0 | U11: 0 | V11: 0 | W11: 0 | X11: 0 | Y11: 0
A12: b) Patrimônio de Referência Nível I | B12: =B13+B14 -> 751833.7 | C12: =C13+C14 -> 764579 | D12: 791534 | E12: 781972 | F12: 838864 | G12: 883344 | H12: 931772 | I12: 868274 | J12: 988904 | K12: 1003000 | L12: 1003106 | M12: 1074578 | N12: 0 | O12: 0 | P12: 0 | Q12: 0 | R12: 0 | S12: 0 | T12: 0 | U12: 0 | V12: 0 | W12: 0 | X12: 0 | Y12: 0
A13: b.1) Capital Principal – CP | B13: 709237.8 | C13: 717073 | D13: 743918 | E13: 734772 | F13: 791668 | G13: 835983 | H13: 884560 | I13: 820423 | J13: 941547 | K13: 955098 | L13: 955410 | M13: 1020431
A14: b.2) Capital Complementar - CC | B14: =B15+B16 -> 42595.9 | C14: =C15+C16 -> 47506 | D14: =D15+D16 -> 47616 | E14: 47200 | F14: 47196 | G14: 47361 | H14: 47212 | I14: 47851 | J14: 47357 | K14: 47902 | L14: 47696 | M14: 54147 | N14: 0 | O14: 0 | P14: 0 | Q14: 0 | R14: 0 | S14: 0 | T14: 0 | U14: 0 | V14: 0 | W14: 0 | X14: 0 | Y14: 0
A15: - LFs Subordinadas | B15: 41652.9 | C15: 46549 | D15: 46777 | E15: 46384 | F15: 46444 | G15: 46529 | H15: 46359 | I15: 46930 | J15: 46409 | K15: 0 | L15: 0 | M15: 0 | N15: 0 | O15: 0 | P15: 0 | Q15: 0 | R15: 0 | S15: 0 | T15: 0 | U15: 0 | V15: 0 | W15: 0 | X15: 0 | Y15: 0
A16: - Ajuste Participações de não controladores Nível I | B16: 943 | C16: 957 | D16: 839 | E16: 816 | F16: 752 | G16: 832 | H16: 853 | I16: 921 | J16: 948 | K16: 0 | L16: 0 | M16: 0 | N16: 0 | O16: 0 | P16: 0 | Q16: 0 | R16: 0 | S16: 0 | T16: 0 | U16: 0 | V16: 0 | W16: 0 | X16: 0 | Y16: 0
A17: c) Patrimônio de Referência Nível II | B17: =B18+B19-1 -> 276980 | C17: =C18+C19 -> 283086 | D17: =D18+D19 -> 275335 | E17: 252586 | F17: 244681 | G17: 236033 | H17: 226665 | I17: 196561 | J17: 206605 | K17: 230486 | L17: 279018 | M17: 284922 | N17: 0 | O17: 0 | P17: 0 | Q17: 0 | R17: 0 | S17: 0 | T17: 0 | U17: 0 | V17: 0 | W17: 0 | X17: 0 | Y17: 0
A18: c.1) Dívidas Subordinadas/LFs Subordinadas | B18: 275723 | C18: 281810 | D18: 274216 | E18: 251498 | F18: 243678 | G18: 234923 | H18: 225528 | I18: 195333 | J18: 205340 | K18: 0 | L18: 0 | M18: 0
A19: c.2) Ajuste Participações de não controladores do Nível II | B19: 1258 | C19: 1276 | D19: 1119 | E19: 1088 | F19: 1003 | G19: 1110 | H19: 1137 | I19: 1228 | J19: 1265 | K19: 0 | L19: 0 | M19: 0
A20: d) Ativos Ponderados por Risco (RWA) | B20: =SUM(B21:B23) -> 5865092.5 | C20: =SUM(C21:C23) -> 5795471.3 | D20: 5812313 | E20: 6232703 | F20: 6463065 | G20: 6812512 | H20: 7259895 | I20: 7698797 | J20: 8563063 | K20: 8483233 | L20: 8551897 | M20: 8938361 | N20: 0 | O20: 0 | P20: 0 | Q20: 0 | R20: 0 | S20: 0 | T20: 0 | U20: 0 | V20: 0 | W20: 0 | X20: 0 | Y20: 0
A21: d.1) Risco de Crédito por Abordagem Padronizada - RWAcpad | B21: 4704783.6 | C21: 4751364 | D21: 4864786 | E21: 5290346 | F21: 5578645 | G21: 5925333 | H21: 6180609 | I21: 6621652 | J21: 7324024 | K21: 7241945 | L21: 7436982 | M21: 7822444
A22: d.2) Risco de Mercado - RWAmpad | B22: 118077.6 | C22: 1876 | D22: 7891 | E22: 2721 | F22: 4176 | G22: 6935 | H22: 5158 | I22: 3017 | J22: 4903 | K22: 7152 | L22: 4658 | M22: 5660
A23: d.3) Risco Operacional por Abordagem Padronizada - RWAopad | B23: 1042231.3 | C23: 1042231.3 | D23: 939636 | E23: 939636 | F23: 880244 | G23: 880244 | H23: 1074128 | I23: 1074128 | J23: 1234136 | K23: 1234136 | L23: 1110257 | M23: 1110257
A24: e) Patrimônio de Referência Mínimo Requerido para o RWA (e = d x fator "F" de cada período) | B24: =B20*8% -> 469207.4 | C24: =C20*8% -> 463637.704 | D24: 464985.04 | E24: 498616.24 | F24: 517045.2 | G24: 545000.96 | H24: 580791.6 | I24: 615903.76 | J24: 685045.04 | K24: 0 | L24: 0 | M24: 0 | N24: 0 | O24: 0 | P24: 0 | Q24: 0 | R24: 0 | S24: 0 | T24: 0 | U24: 0 | V24: 0 | W24: 0 | X24: 0 | Y24: 0
A25: f) Margem Sobre o Patrimônio de Referência Requerido (f = a - e) | B25: =B11-B24+1 -> 559607.3 | C25: =C11-C24 -> 584027.296 | D25: =D11-D24 -> 601883.96 | E25: 535941.76 | F25: 566499.8 | G25: 574376 | H25: 577645.4 | I25: 448931.24 | J25: 510464 | K25: 0 | L25: 0 | M25: 0 | N25: 0 | O25: 0 | P25: 0 | Q25: 0 | R25: 0 | S25: 0 | T25: 0 | U25: 0 | V25: 0 | W25: 0 | X25: 0 | Y25: 0
A26: g) Patrimônio de Referência Nível I Mínimo Requerido para o RWA (g = d x 6,0% desde janeiro de 2015) | B26: =B20*6% -> 351905.55 | C26: =C20*6% -> 347728.278 | D26: 348738.78 | E26: 373962.18 | F26: 387783.9 | G26: 408750.72 | H26: 435593.7 | I26: 461927.82 | J26: 513783.78 | K26: 0 | L26: 0 | M26: 0 | N26: 0 | O26: 0 | P26: 0 | Q26: 0 | R26: 0 | S26: 0 | T26: 0 | U26: 0 | V26: 0 | W26: 0 | X26: 0 | Y26: 0
A27: h) Margem sobre o Patrimônio de Referência Nível I Requerido (h = b - g) | B27: =B12-B26 -> 399928.15 | C27: =C12-C26 -> 416850.722 | D27: 442795.22 | E27: 408009.82 | F27: 451080.1 | G27: 474593.28 | H27: 496178.3 | I27: 406346.18 | J27: 475120.22 | K27: 0 | L27: 0 | M27: 0 | N27: 0 | O27: 0 | P27: 0 | Q27: 0 | R27: 0 | S27: 0 | T27: 0 | U27: 0 | V27: 0 | W27: 0 | X27: 0 | Y27: 0
A28: i) Capital Principal Mínimo Requerido para o Rwa (i = d x 4,5%) | B28: =B20*4.5% -> 263929.1625 | C28: =C20*4.5% -> 260796.2085 | D28: 261554.085 | E28: 280471.635 | F28: 290837.925 | G28: 306563.04 | H28: 326695.275 | I28: 346445.865 | J28: 385337.835 | K28: 0 | L28: 0 | M28: 0 | N28: 0 | O28: 0 | P28: 0 | Q28: 0 | R28: 0 | S28: 0 | T28: 0 | U28: 0 | V28: 0 | W28: 0 | X28: 0 | Y28: 0
A29: j) Margem sobre o Capital Principal Requerido (j = b.1 - i) | B29: =B13-B28 -> 445308.6375 | C29: =C13-C28 -> 456276.7915 | D29: 482363.915 | E29: 454300.365 | F29: 500830.075 | G29: 529419.96 | H29: 557864.725 | I29: 473977.135 | J29: 556209.165 | K29: 0 | L29: 0 | M29: 0 | N29: 0 | O29: 0 | P29: 0 | Q29: 0 | R29: 0 | S29: 0 | T29: 0 | U29: 0 | V29: 0 | W29: 0 | X29: 0 | Y29: 0
A30: k) Valor Correspondente ao Rban | B30: 53486 | C30: 60619 | D30: 87562 | E30: 112732 | F30: 119634 | G30: 108983 | H30: 132049 | I30: 125024 | J30: 105226
A31: l) Patrimônio de Referência Mínimo Requerido para o Rwa e para Rban (l = e + k) | B31: =B24+B30 -> 522693.4 | C31: =C24+C30 -> 524256.704 | D31: 552547.04 | E31: 611348.24 | F31: 636679.2 | G31: 653983.96 | H31: 712840.6 | I31: 740927.76 | J31: 790271.04 | K31: 0 | L31: 0 | M31: =M24+M30 -> 0 | N31: 0 | O31: 0 | P31: 0 | Q31: 0 | R31: 0 | S31: 0 | T31: 0 | U31: 0 | V31: 0 | W31: 0 | X31: 0 | Y31: 0
A32: m) Margem sobre o PR Considerando a Rban (m = a - l) | B32: =B11-B31+1 -> 506121.3 | C32: =C11-C31 -> 523408.296 | D32: =D11-D31 -> 514321.96 | E32: 423209.76 | F32: 446865.8 | G32: 465393.04 | H32: 445596.4 | I32: 323907.24 | J32: 405237.96 | K32: 0 | L32: 0 | M32: 0 | N32: 0 | O32: 0 | P32: 0 | Q32: 0 | R32: 0 | S32: 0 | T32: 0 | U32: 0 | V32: 0 | W32: 0 | X32: 0 | Y32: 0
A33: n) Valor requerido de adicional de capital principal (n = d x fator "F" de cada período) | B33: =B20*2.5% -> 146627.3125 | C33: =C20*1.25% -> 72443.39125 | D33: =D20*1.25% -> 72653.9125 | E33: =E20*1.25% -> 77908.7875 | F33: 80788.3125 | G33: =G20*1.625% -> 110703.32 | H33: =H20*1.625% -> 117973.2937 | I33: =I20*2% -> 153975.94 | J33: =J20*2% -> 171261.26 | K33: 0 | L33: 0 | M33: 0 | N33: 0 | O33: 0 | P33: 0 | Q33: 0 | R33: 0 | S33: 0 | T33: 0 | U33: 0 | V33: 0 | W33: 0 | X33: 0 | Y33: 0
A34: o) Índice de Basileia (o = a/d x 100) | B34: =B11/B20 -> 0.1754130391 | C34: =C11/C20 -> 0.180773046 | D34: 0.1835532601 | E34: 0.1659886569 | F34: 0.1676518803 | G34: 0.1643119308 | H34: 0.1595666329 | I34: 0.1383118687 | J34: 0.1396123093 | K34: 0.1454028199 | L34: 0.1499227598 | M34: 0.1520972357
A35: p) Capital de Nível I (p = b/d x 100) | B35: =B12/B20 -> 0.1281878675 | C35: =C12/C20 -> 0.1319269755 | D35: 0.1361822737 | E35: 0.1254627406 | F35: 0.1297935268 | G35: 0.1296649459 | H35: 0.1283451069 | I35: 0.1127804773 | J35: 0.1154848446 | K35: 0.1182332255 | L35: 0.1172963145 | M35: 0.1202209219
A36: q) Capital Principal (q = b1/d x 100) | B36: =B13/B20 -> 0.1209252539 | C36: =C13/C20 -> 0.1237298854 | D36: 0.1279900102 | E36: 0.1178897823 | F36: 0.1224911091 | G36: 0.1227128848 | H36: 0.1218419826 | I36: 0.1065650906 | J36: 0.1099544637 | K36: 0.1125865575 | L36: 0.1117190724 | M36: 0.1141630999

Sheet Dividendos e JCP
A2: Banco Mercantil do Brasil S.A.
A4: Planilha de Séries Históricas
C6: Índice | S6: Índice
A7: Dividendos e JCP
B9: 2020-03-01 | C9: =EDATE(B9,3) -> 2020-06-01 | D9: =EDATE(C9,3) -> 2020-09-01 | E9: =EDATE(D9,3) -> 2020-12-01 | F9: =EDATE(E9,3) -> 2021-03-01 | G9: 2021-06-01 | H9: 2021-09-01 | I9: 2021-12-01 | J9: 2022-03-01 | K9: 2022-06-01 | L9: 2022-09-01 | M9: 2022-12-01 | N9: 2023-03-01 | O9: 2023-06-01 | P9: 2023-09-01 | Q9: 2023-12-01 | R9: 2024-03-01 | S9: 2024-06-01 | T9: 2024-09-01 | U9: 2024-12-01 | V9: 2025-03-01 | W9: 2025-06-01 | X9: 2025-09-01 | Y9: 2025-12-01
A10: DIVIDENDOS E JCP
A11: Total de JCP distribuído / provisionado - Valor Bruto (R$ Milhões) | B11: 0 | C11: 0 | D11: 0 | E11: 42220 | F11: 0 | G11: 22029 | H11: 0 | I11: 25388 | J11: 0 | K11: 0 | L11: 39126 | M11: 57957
A12: JCP distribuído por ação ON (R$) | B12: 0 | C12: 0 | D12: 0 | E12: 0.776108 | F12: 0 | G12: 0.2024745 | H12: 0 | I12: 0.234556 | J12: 0 | K12: 0 | L12: 0.360888 | M12: 0.53458315
A13: JCP distribuído por ação PN (R$) | B13: 0 | C13: 0 | D13: 0 | E13: 0.853719 | F13: 0 | G13: 0.2256273 | H13: 0 | I13: 0.258012 | J13: 0 | K13: 0 | L13: 0.396977 | M13: 0.58804103
A15: Total de JCP distribuído / provisionado - Valor Líquido (R$ Milhões) | B15: 0 | C15: 0 | D15: 0 | E15: 35887 | F15: 0 | G15: 18725 | H15: 0 | I15: 21579 | J15: 0 | K15: 0 | L15: 33257 | M15: 49264
A16: JCP distribuído por ação ON (R$) | B16: 0 | C16: 0 | D16: 0 | E16: 0.659692 | F16: 0 | G16: 0.172103325 | H16: 0 | I16: 0.1993726 | J16: 0 | K16: 0 | L16: 0.30675504 | M16: 0.45439568
A17: JCP distribuído por ação PN (R$) | B17: 0 | C17: 0 | D17: 0 | E17: 0.72566 | F17: 0 | G17: 0.191783205 | H17: 0 | I17: 0.2193102 | J17: 0 | K17: 0 | L17: 0.33743029 | M17: 0.49983525
A19: Total de Dividendo distribuído / provisionado - Valor (R$ Milhões) | B19: 0 | C19: 0 | D19: 0 | E19: 0 | F19: 0 | G19: 0 | H19: 0 | I19: 3514 | J19: 0 | K19: 23491 | L19: 0 | M19: 0
A20: Dividendo distribuído / provsionado por ação ON (R$) | B20: 0 | C20: 0 | D20: 0 | E20: 0 | F20: 0 | G20: 0 | H20: 0 | I20: 0.032462 | J20: 0 | K20: 0.21591604 | L20: 0 | M20: 0
A21: Dividendo distribuído / provsionado por ação PN (R$) | B21: 0 | C21: 0 | D21: 0 | E21: 0 | F21: 0 | G21: 0 | H21: 0 | I21: 0.035728 | J21: 0 | K21: 0.23750765 | L21: 0 | M21: 0

Sheet Notas Explicativas
A2: Banco Mercantil do Brasil S.A.
A4: Planilha de Séries Históricas
B6: Índice | Q6: Índice
B9: 2020-03-01 | C9: =EDATE(B9,3) -> 2020-06-01 | D9: =EDATE(C9,3) -> 2020-09-01 | E9: 2020-12-01 | F9: 2021-03-01 | G9: 2021-06-01 | H9: 2021-09-01 | I9: 2021-12-01 | J9: 2022-03-01 | K9: 2022-06-01 | L9: 2022-09-01 | M9: 2022-12-01 | N9: 2023-03-01 | O9: 2023-06-01 | P9: 2023-09-01 | Q9: 2023-12-01 | R9: 2024-03-01 | S9: 2024-06-01 | T9: 2024-09-01 | U9: 2024-12-01 | V9: 2025-03-01 | W9: 2025-06-01 | X9: 2025-09-01 | Y9: 2025-12-01
A10: Setor Econômico - Consolidado
A11: Pessoa Física | B11: 3923367 | C11: 4069539 | D11: 4475362 | E11: 5368816 | F11: 5845938 | G11: 6516503 | H11: 7186850 | I11: 7928000 | J11: 8706197 | K11: 9036504 | L11: 9466076 | M11: 10074919
A12: Pessoa Jurídica | B12: =SUM(B16:B25) -> 1191481 | C12: 1120953 | D12: 1064595 | E12: 1065997 | F12: 1011114 | G12: 996315 | H12: 927107 | I12: 976340 | J12: 1003691 | K12: 928456 | L12: 879115 | M12: =SUM(M13:M15) -> 898676
A13: Indústria | B13: 0 | C13: 0 | D13: 0 | E13: 0 | F13: 0 | G13: 0 | H13: 0 | I13: 0 | J13: 0 | K13: 389944 | L13: 356976 | M13: 364674
A14: Comércio | B14: 0 | C14: 0 | D14: 0 | E14: 0 | F14: 0 | G14: 0 | H14: 0 | I14: 0 | J14: 0 | K14: 30941 | L14: 27909 | M14: 25310
A15: Serviços | B15: 0 | C15: 0 | D15: 0 | E15: 0 | F15: 0 | G15: 0 | H15: 0 | I15: 0 | J15: 0 | K15: 507571 | L15: 494230 | M15: 508692
A16: CONSTRUCAO CIVIL | B16: 249297 | C16: 218157 | D16: 204701 | E16: 180534 | F16: 172633 | G16: 162116 | H16: 152433 | I16: 167754 | J16: 169430 | K16: 0 | L16: 0 | M16: 0
A17: TRANSPORTE DE PASSAGEIROS, EXCETO AVIACAO CIVIL | B17: 134319 | C17: 151077 | D17: 145688 | E17: 133957 | F17: 123190 | G17: 94717 | H17: 74963 | I17: 69270 | J17: 58628 | K17: 0 | L17: 0 | M17: 0
A18: BIOCOMBUSTIVEIS E ACUCAR | B18: 118291 | C18: 109261 | D18: 104049 | E18: 100240 | F18: 117266 | G18: 89440 | H18: 58864 | I18: 59953 | J18: 75826 | K18: 0 | L18: 0 | M18: 0
A19: PRESTACAO DE SERVICOS | B19: 77876 | C19: 84911 | D19: 103599 | E19: 128000 | F19: 103375 | G19: 100220 | H19: 129731 | I19: 159903 | J19: 159783 | K19: 0 | L19: 0 | M19: 0
A20: ATIVIDADES FINANCEIRAS, DE SEGUROS E SERVICOS RELACIONADO | B20: 112004 | C20: 108730 | D20: 91321 | E20: 100601 | F20: 91729 | G20: 138785 | H20: 113437 | I20: 161507 | J20: 168946 | K20: 0 | L20: 0 | M20: 0
A21: SIDERURGIA | B21: 88044 | C21: 87328 | D21: 89872 | E21: 89953 | F21: 81658 | G21: 81295 | H21: 83341 | I21: 85588 | J21: 125389 | K21: 0 | L21: 0 | M21: 0
A22: MATERIAIS DE CONSTRUCAO | B22: 64296 | C22: 63392 | D22: 39795 | E22: 0 | F22: 0 | G22: 0 | H22: 0 | I22: 0 | J22: 0 | K22: 0 | L22: 0 | M22: 0
A23: TRANSPORTE DE CARGAS E LOGISTICA | B23: 33659 | C23: 29743 | D23: 34620 | E23: 25889 | F23: 0 | G23: 24502 | H23: 22829 | I23: 20370 | J23: 25333 | K23: 0 | L23: 0 | M23: 0
A24: ALIMENTOS | B24: 0 | C24: 0 | D24: 0 | E24: 39780 | F24: 55558 | G24: 56004 | H24: 55387 | I24: 52950 | J24: 49789 | K24: 0 | L24: 0 | M24: 0
A25: OUTROS | B25: =247391+33697+32607 -> 313695 | C25: 268354 | D25: 250950 | E25: 267043 | F25: 265705 | G25: 249236 | H25: 236122 | I25: =219415-20370 -> 199045 | J25: 170567 | K25: 0 | L25: 0 | M25: 0
A26: TOTAL | B26: =B11+B12 -> 5114848 | C26: 5190492 | D26: 5539957 | E26: 6434813 | F26: 6857052 | G26: 7512818 | H26: 8113957 | I26: 8904340 | J26: 9709888 | K26: 9964960 | L26: 10345191 | M26: 10973595
A28: Produtos - Consolidado
A29: Crédito Consignado INSS | B29: 1401118 | C29: 1612131 | D29: 2023403 | E29: 2906158 | F29: 3262116 | G29: 3875894 | H29: 4459758 | I29: 4845430 | J29: 4803185 | K29: 4982168 | L29: 5153898 | M29: 5442678
A30: CP INSS Débito em Conta | B30: 1386162 | C30: 1367923 | D30: 1368576 | E30: 1362349 | F30: 1454982 | G30: 1460767 | H30: 1508412 | I30: 1583125 | J30: 1736510 | K30: 1651559 | L30: 1710761 | M30: 1820751
A31: Capital de Giro | B31: 549534 | C31: 577812 | D31: 580577 | E31: 603126 | F31: 593317 | G31: 583066 | H31: 594653 | I31: 625077 | J31: 612032 | K31: 589156 | L31: 564385 | M31: 578171
A32: Renegociação | B32: 302468 | C32: 261383 | D32: 258646 | E32: 249893 | F32: 220221 | G32: 200222 | H32: 171181 | I32: 148431 | J32: 137678 | K32: 261438 | L32: 240820 | M32: 235522
A33: Crédito Rural | B33: 221329 | C33: 156558 | D33: 132169 | E33: 136092 | F33: 128758 | G33: 133358 | H33: 70342 | I33: 71394 | J33: 72309 | K33: 17570 | L33: 15090 | M33: 15105
A34: Crédito Consignado Público | B34: 383730 | C34: 384225 | D34: 404265 | E34: 423775 | F34: 437427 | G34: 490808 | H34: 536021 | I34: 573474 | J34: 596499 | K34: 565376 | L34: 540025 | M34: 510015
A35: Cartão de Crédito Consignado | B35: 250744 | C35: 232994 | D35: 224064 | E35: 225789 | F35: 235540 | G35: 245100 | H35: 252426 | I35: 263357 | J35: 262786 | K35: 270033 | L35: 298031 | M35: 372380
A36: Crédito Pessoal | B36: 182749 | C36: 197958 | D36: 201432 | E36: 194607 | F36: 190797 | G36: 193561 | H36: 178860 | I36: 168630 | J36: 156601 | K36: 150620 | L36: 156727 | M36: 104740
A37: Crédito Imobiliário | B37: 76394 | C37: 74785 | D37: 65846 | E37: 66649 | F37: 55084 | G37: 50580 | H37: 47917 | I37: 47033 | J37: 46816 | K37: 46668 | L37: 46871 | M37: 46208
A38: Câmbio | B38: 92823 | C38: 96512 | D38: 72577 | E38: 72615 | F38: 75731 | G38: 74582 | H38: 77683 | I38: 79734 | J38: 0 | K38: 0 | L38: 0 | M38: 0
A39: Cheque Especial | B39: 61975 | C39: 42063 | D39: 45169 | E39: 43672 | F39: 49326 | G39: 48039 | H39: 58281 | I39: 69329 | J39: 79638 | K39: 85225 | L39: 98431 | M39: 110147
A40: Conta Garantida | B40: 43974 | C40: 41628 | D40: 27068 | E40: 23614 | F40: 26586 | G40: 25865 | H40: 21215 | I40: 19379 | J40: 18349 | K40: 19288 | L40: 18654 | M40: 19474
A41: Cartão de Crédito | B41: 57210 | C41: 54948 | D41: 59868 | E41: 64580 | F41: 61626 | G41: 66620 | H41: 72296 | I41: 90592 | J41: 91704 | K41: 92534 | L41: 91510 | M41: 92423
A42: Cheque Empresa | B42: 32949 | C42: 16972 | D42: 11607 | E42: 10755 | F42: 14862 | G42: 14218 | H42: 13205 | I42: 12430 | J42: 17951 | K42: 18598 | L42: 15985 | M42: 10621
A43: Financiamento Veículos - CDC | B43: 8592 | C43: 6293 | D43: 5996 | E43: 5478 | F43: 5357 | G43: 4762 | H43: 3909 | I43: 7172 | J43: 8125 | K43: 10206 | L43: 9568 | M43: 8972
A44: Empréstimo FGTS | B44: 0 | C44: 0 | D44: 0 | E44: 0 | F44: 0 | G44: 0 | H44: 0 | I44: 219412 | J44: 872375 | K44: 1119197 | L44: 1297986 | M44: 1521013
A45: Outros | B45: 63097 | C45: 66307 | D45: 58694 | E45: 45661 | F45: 45322 | G45: 45376 | H45: 47798 | I45: 80341 | J45: 197330 | K45: 85324 | L45: 86449 | M45: 85375
A46: Total Geral | B46: =SUM(B29:B45) -> 5114848 | C46: 5190492 | D46: 5539957 | E46: 6434813 | F46: 6857052 | G46: 7512818 | H46: =SUM(H29:H45) -> 8113957 | I46: 8904340 | J46: =SUM(J29:J45) -> 9709888 | K46: =SUM(K29:K45) -> 9964960 | L46: =SUM(L29:L45) -> 10345191 | M46: =SUM(M29:M45) -> 10973595
B47: =B26-B46 -> 0 | C47: 0 | D47: 0 | E47: 0 | F47: 0 | G47: 0 | H47: 0 | I47: 0 | J47: 0 | K47: =K26-K46 -> 0 | L47: =L26-L46 -> 0 | M47: =M26-M46 -> 0
